Workbook

Sheet Hinweise zum Programm (hidden)
A1: Hinweise zur Bedienung
A3: Allgemeine Hinweise:
A4: Das Auslegungstool QAL dient als Hilfsmittel zur Technischen Planung der emcoair Quellluftdurchlässe.
A6: Auslegung:
A7: Im Tabellenblatt "Auslegung" erfolgt die Festlegung des gewünschten Auslasstyps. Bei Eingabe der Vorgabedaten, wie z.B. dem benötigten Luftvolumenstrom werden die technischen Daten des gewählten Luftdurchlasses berechnet.
A9: Strömungsformen:
A10: Die im Tabellenblatt "Auslegung" ermittelten Strömungsgeschwindigkeiten gelten für einen deckenbündig montierten Luftdurchlass mit horizontaler Ausblascharakteristik.
A12: Funktion:
A13: Im Tabellenblatt "Funktion" finden Sie eine kurze Funktionsbeschreibung zum emcoair QAL.
A15: Hinweise zur Funktion:
A16: Für eine ordnungsgemäße Funktion des Auslegungstools muss die Ausführung von Makros und MS Excel aktiviert sein. Die Aktivierung von Makros erfolgt im Menü Makrosicherheit.
A17: Einstellung unter MS Excel 97-2003: Extras → Makro → Sicherheit
A18: Einstellung unter MS Excel 2007: Entwicklertools* → Makrosicherheit
A19: *Das Menü Entwicklertools muss unter Umständen eingefügt werden unter Excel-Optionen

Sheet Version (hidden)
A1: Service | B1: =MID(CELL("dateiname"),FIND("[",CELL("dateiname"))+1,FIND("]",CELL("dateiname"))-FIND("[",CELL("dateiname"))-1) -> 655_Auslegungstool_QAL_201030.xlsm
A2: Version: | B2: 1.0

Sheet Auslegung
A1: Auslegung Kampmann Quellluftdurchlässe QAL
A3: Eingabefelder sind gelb gekennzeichnet
A4: Ergebnisfelder sind blau gekennzeichnet
A6: Vorgaben
A7: Lüftungstechnik | B7: Symbol | C7: Einheit | D7: Wert
A8: Bezeichung | B8: Symbol | C8: Einheit
B9: L | C9: mm
B10: L | C10: mm
B11: L | C11: mm
A12: Durchlass Typ | D12: QAL-K
D13: QAL-L
D14: QAL-K
D15: QAL-R
D16: QAL-H
D17: QAL-V
A18: Nenn-Höhe | B18: H | C18: mm | D18: 1500
A19: =IF(OR(D12="QAL-L",D12="QAL-K"),"Nenn-Breite","Nenn-Durchmesser") -> Nenn-Breite | B19: DN | C19: [-] | D19: 1000
D20: =IF(OR(D12="QAL-H",D12="QAL-V"),"",400) -> 400
D21: =IF(D12="QAL-V","",600) -> 600
D22: 800
D23: 1000
D24: =IF(D12="QAL-V",1200,"") -> 
D25: =IF(D12="QAL-V",1400,"") -> 
A26: Luftvolumenstrom, Einzeldurchlass | B26: V·0 | C26: m³/h | D26: 860
A27: Anschlussstutzen | D27: rund
D28: rund
D29: eckig
A30: =IF($D$27="rund","Stutzendurchmesser","Stutzenbreite") -> Stutzendurchmesser | B30: d | C30: mm | D30: 355
A31: Stutzenlänge | B31: t | C31: mm | D31: 250
A32: Temperatur Zuluft | B32: Dt0 | C32: °C | D32: 17
A33: Temperatur in 1,1m Höhe | B33: tRaum | C33: °C | D33: 23
A35: Raumdaten
A36: Raumhöhe | B36: H1 | C36: m | D36: 4
A37: Obergrenze Aufenthaltsbereich | B37: H2 | C37: m | D37: 1.8
A38: Raumlänge | B38: LR | C38: m | D38: 12
A39: Raumbreite | B39: BR | C39: m | D39: 6
A40: Unterkante Aufenthaltsbereich | B40: hmin | C40: m | D40: 0.1
A41: Maximale Luftgeschwindigkeit im Aufenthaltsbereich | B41: vmax | C41: m/s | D41: 0.2
A43: Akustikdaten
A44: Raumart nach VDI 2081 | D44: Konzertsaal
C45: Einzelbüro | I45: 5 | J45: min. Abmessung Frontblende rund | K45: =Grunddaten!AB33 -> 0 | L45: mm
C46: Großraumbüro
C47: Werkstätten
C48: Ruheraum, Pausenraum
C49: Untersuchungsraum Krankenhaus
C50: Rundfunk-, Fernsehstudio
C51: Chemielabor
C52: Wasch- und WC-Raum, Umkleide
C53: Schwimmbad
C54: EDV-Raum
C55: Konzertsaal
C56: Lesesaal
C57: Museum
C58: Küche
C59: Theater, Kino
C60: Klassen- Seminarraum
C61: Gaststätte
C62: kein Typ
C63: Konferenzraum
C64: Hotelzimmer
C65: Hörsaal
C66: Bettenzimmer Krankenhaus
C67: Verkaufsraum
C68: Sporthalle
A69: Betrachteter Durchlass | D69: Zuluft
D70: Zuluft
D71: Abluft
A72: Abstand zur Schallquelle | B72: r | C72: m | D72: 1.5
A73: Zusatzdaten
A74: Funktion | F74: =VLOOKUP(B74,#REF!,2,FALSE) ->  | G74: =VLOOKUP($B$74,$B$75:$G$77,6,0) -> Z
B75: =IF(D12=500,"Zuluft","") ->  | G75: Z
B76: =IF(D12=500,"Abluft","") ->  | G76: A
B77: =IF(D12>500,"Zuluft/Abluft-Kombination","") -> Zuluft/Abluft-Kombination | G77: K
A78: Farbe Abdeckprofil und Endwinkel | B78: 9010 | F78: =VLOOKUP(B78,#REF!,2,FALSE) ->  | G78: =$B$78 -> 9010
A79: Farbe Luftlenkelement | B79: schwarz | G79: =VLOOKUP(B79,B80:G82,6,FALSE) -> S
B80: schwarz | G80: S
B81: weiß | G81: W
B82: grau | G82: G
A83: Einstellung Luftlenkelement | B83: Deckenstrahl D / E | G83: =VLOOKUP(B83,B84:G87,6,FALSE) -> D
B84: Deckenstrahl D / E | G84: D
B85: Sondereinstellung | G85: S
A87: Werkstoff Anschlusskasten | B87: Stahl verzinkt | G87: V
B88: Stahl verzinkt
A89: frontseitig bedienbare Drossel | B89: ohne | F89: =VLOOKUP(B89,#REF!,2,FALSE) ->  | G89: =VLOOKUP(B89,B90:G92,6,FALSE) -> 0
B90: mit | G90: 1
B91: ohne | G91: 0
A92: Innenauskleidung | B92: Baustoffklasse B1 (Standard) | G92: =VLOOKUP(B92,B93:G96,6,FALSE) -> B1
B93: Baustoffklasse B1 (Standard) | G93: B1
B94: Baustoffklasse A2 (optional) | G94: A2
A96: Thermische Daten | G96: =IF(D12<1000,CONCATENATE(0,D12),D12) -> QAL-K
A97: spezifische Kühllast | B97: q° | C97: W/m² | D97: 35 | G97: =IF(K124=78,"080",100) -> 100
A98: Gesamtkühllast | B98: Q°K | C98: W | D98: ='Berechnung-R'!$B$19 -> 2520
A99: Kühlleistung Durchlass | B99: Q°D | C99: W | D99: ='Berechnung-R'!$B$17 -> 1730.32
A100: Kühlleistungs-Asymmetrie | B100: DQ°K | C100: W | D100: ='Berechnung-R'!$B$20 -> 789.68
A102: Berechnung strömungstechnische und Akustische Daten
A103: Druckverlust | B103: Dpt | C103: Pa | D103: =Grunddaten!$AC$33 -> 2.906327417
A104: Anströmgeschwindigkeit | B104: v0 | C104: m/s | D104: =Grunddaten!$V$33 -> 0.1592592593
A105: Austrittsgeschwindigkeit | B105: vSUP | C105: m/s | D105: =Grunddaten!$AD$33 -> 0.1592592593
A106: Nahzone | B106: LN | C106: m | D106: =IF(OR($D$12="QAL-L",$D$12="QAL-K"),'Berechnung-L'!$I$1,'Berechnung-R'!$I$1) -> 2.2
A107: Temperatur in Fußbodennähe | B107: t0,1 | C107: °C | D107: =IF(OR(D12="QAL-L",D12="QAL-K"),'Berechnung-L'!$I$2,'Berechnung-R'!$I$2) -> 18.77547196
A108: Ablufttemperatur | B108: tETA | C108: °C | D108: ='Berechnung-R'!$B$24 -> 25.73826807
A109: Geschwindigkeit im Fußbodenbereich in Wandnähe | B109: vx1 | C109: m/s | D109: =IF(D69="Zuluft",IF(#REF!< 0.1,"< 0,1",#REF!),"") -> 
A110: Zugluftrisiko am Fußboden** | B110: DR1 | C110: % | D110: =IF(D69="Zuluft",IF($D$32>$D$33,"Heizfall",DR!$C$16),"") -> 
A111: =IF(AND(D32>D33,D12="MSA"),"Eindringtiefe (Walzenstellung CD)","Geschwindigkeit im Aufenthaltsbereich*") -> Geschwindigkeit im Aufenthaltsbereich* | B111: vx2 | C111: =IF(AND(D33<=D32,D12="MSA"),"m","m/s") -> m/s | D111: =IF(D69="Zuluft",IF($D$32>$D$33,#REF!,IF(#REF!<0.1,"< 0,1",#REF!)),"") -> 
A112: Zugluftrisiko im Aufenthaltsbereich** | B112: DR2 | C112: % | D112: =IF(D69="Zuluft",IF($D$32>$D$33,"Heizfall",DR!$C$24),"") -> 
A113: Geschwindigkeit nach Ablösen an Xkr. | B113: vx3 | C113: m/s | D113: =IF(D69="Zuluft",IF(#REF!<0.1,"<0,1",IF($D$32>=$D$33,"Heizfall",#REF!)),"") -> 
A114: Zugluftrisiko nach Ablösepunkt** | B114: DR3 | C114: % | D114: =IF(D69="Zuluft",IF($D$32>=$D$33,"Heizfall",DR!$C$32),"") -> 
A115: Resultierende Raumkategorie | B115: RAL | C115: [-] | D115: =IF(D69="Zuluft",IF(D32>=D33,"Heizfall",IF(AND($D$110<9.95,$D$112<9.95,$D$114<9.95),"A",IF(AND($D$110<19.95,$D$112<19.95,$D$114<19.95),"B",IF(AND($D$110<29.95,$D$112<29.95,$D$114<29.95),"C","Außerhalb C")))),"") -> 
A116: =CONCATENATE("Schallleistungspegel, ",D69,"durchlass*") -> Schallleistungspegel, Zuluftdurchlass* | B116: LWA_SUP | C116: dB(A) | D116: =IF(Grunddaten!$AK$33<25,"<25",Grunddaten!$AK$33) -> <25 | I116: 1 | J116: Breite Durchlass | K116: =Grunddaten!D33 -> 1033 | L116: mm
A117: Schalldruckpegel, Zahlenwert Zuluft + Abluft | D117: =D116+10*LOG(Lw!$K$130/(4*PI()*Auslegung!D72^2)+4/(Lw!$M$130)) ->  | E117: =E116+10*LOG(Lw!$K$130/(4*PI()*Auslegung!E72^2)+4/(Lw!$M$130)) -> 
A118: =CONCATENATE("Schallldruckpegel in ",D72,"m Entfernung") -> Schallldruckpegel in 1,5m Entfernung | B118: LPA_SUP | C118: dB(A) | D118: =IF(D69="Zuluft",IF(D116="<25","<25",IF(D116+10*LOG(Lw!$G$78/(4*PI()*Auslegung!D72^2)+4/(Lw!$I$78))>=25,D116+10*LOG(Lw!$G$78/(4*PI()*Auslegung!D72^2)+4/(Lw!$I$78)),"<25")),"") -> <25 | I118: 2 | J118: Höhe Durchlass | K118: =Grunddaten!F33 -> 1533 | L118: mm
A119: Schalldruckpegel rechnerisch | D119: =IF(10*LOG(10^(D117/10)+10^(E117/10))<25,"<25",10*LOG(10^(D117/10)+10^(E117/10))) -> 
A120: Summen-Schallldruckpegel im betrachteten Punkt | B120: LPA | C120: dB(A) | D120: =IFERROR(IF(E117-D117>6,MAX(E117,D117),D119),IF(E118="a. Anf",D118,IF(AND(D118="<25",E118="<25"),"<25","a. Anf"))) -> a. Anf
A121: *Schallleistungspegel nur gültig für Anströmgeschwindigkeiten <3m/s | I121: 3 | J121: Tiefe Durchlass | K121: =Grunddaten!E33 -> 6.5 | L121: mm
I122: 5 | J122: =IF(D27="rund","",A31) ->  | K122: =IF(D27="rund","",D31) ->  | L122: mm
I123: 4 | J123: =A30 -> Stutzendurchmesser | K123: =IF(D27="rund",Grunddaten!K33,D30) -> -/- | L123: mm
A124: Oktavspektrum Schallleistung | B124: LW_Okt | C124: dB | I124: 6 | J124: Abstand Wand - Stutzenmitte | K124: =Grunddaten!O33 -> -/- | L124: mm
B125: LW_125 | C125: dB | D125: =IF($D$116="<25","",Lw!G$69) ->  | I125: 7 | J125: Minimaler Volumenstrom | K125: =Grunddaten!S33 -> 810 | L125: m³/h
B126: LW_250 | C126: dB | D126: =IF($D$116="<25","",Lw!H$69) ->  | I126: 8 | J126: Maximaler Volumenstrom | K126: =Grunddaten!T33 -> 1350 | L126: m³/h
B127: LW_500 | C127: dB | D127: =IF($D$116="<25","",Lw!I$69) -> 
B128: LW_1000 | C128: dB | D128: =IF($D$116="<25","",Lw!J$69) -> 
B129: LW_2000 | C129: dB | D129: =IF($D$116="<25","",Lw!K$69) -> 
B130: LW_4000 | C130: dB | D130: =IF($D$116="<25","",Lw!L$69) ->  | F130: =IF($D$116>25,Lw!N69,"a. Anf") -> 0
B131: LW_8000 | C131: dB | D131: =IF($D$116="<25","",Lw!M$69) -> 
A133: Änderungen vorbehalten
A134: Stand:
A135: =Grunddaten!E36 -> 2020-10-30

Sheet Funktion

Sheet Maße (hidden)

Sheet Datenblatt
A2: Typ | B2: =Auslegung!$D$12 -> QAL-K | I2: =TODAY() -> 2021-02-03
A3: Projekt | B3: bitte Projektnummer angeben
A5: Definition:
A6: Durchlass, Typ: | B6: =Auslegung!$D$12 -> QAL-K | C6: Nennhöhe: | F6: =Auslegung!$D$18 -> 1500 | G6: Nenngröße: | I6: =Auslegung!D19 -> 1000
A7: Schlitzanzahl: | B7: =Auslegung!D18 -> 1500 | C7: Farbe Abdeckprofil: | E7: =Auslegung!B78 -> 9010
A8: Innenauskleidung: | B8: =Auslegung!G92 -> B1 | C8: Drossel fb: | E8: =Auslegung!B89 -> ohne
A10: Beschreibung: Luftdurchlass in linearer (-L), runder (-R), halbrunder (-H), viertelrunder (-V) Bauform bzw. Durchlassfront zur direkten Montage innerhalb von Lüftungskanälen (-K) zur Erzeugung einer turbulenzarmen Quellluftströmung im Komfortbereich.
A11: Einsatzbereich
A12: Minimalvolumenstrom | B12: V°min | C12: =Auslegung!$K$125 -> 810 | D12: m³/h
A13: Maximalvolumenstrom | B13: V°max | C13: =Auslegung!$K$126 -> 1350 | D13: m³/h
A15: technische Vorgaben | F15: Raumdaten
A16: Luftvolumenstrom Zuluft | B16: V·SUP | C16: =Auslegung!D26 -> 860 | D16: m³/h | F16: Raumhöhe | G16: =Auslegung!D36 -> 4 | H16: m
A17: Temperatur Zuluft | B17: tZUL | C17: =Auslegung!D32 -> 17 | D17: °C | F17: Raumbreite | G17: =Auslegung!D39 -> 6 | H17: m
A18: Temperatur Raum | B18: tRAUM | C18: =Auslegung!D33 -> 23 | D18: °C | F18: Raumlänge | G18: =Auslegung!D38 -> 12 | H18: m
A19: =Auslegung!A40 -> Unterkante Aufenthaltsbereich | B19: hmin | C19: =Auslegung!D40 -> 0.1 | D19: m | F19: Nutzungsart | G19: =Auslegung!D44 -> Konzertsaal
A20: =Auslegung!A41 -> Maximale Luftgeschwindigkeit im Aufenthaltsbereich | B20: vmin | C20: =Auslegung!D41 -> 0.2 | D20: m/s
A22: technische Daten | F22: Maße / Einsatzbereich
A23: =CONCATENATE("Druckverlust ",Auslegung!D69,"durchlass") -> Druckverlust Zuluftdurchlass | B23: Dp_SUP/ETA | C23: =IF(Auslegung!D103="",Auslegung!E103,Auslegung!D103) -> 2.906327417 | E23: Pa | F23: =Auslegung!J116 -> Breite Durchlass | H23: =Auslegung!K116 -> 1033 | I23: =Auslegung!L116 -> mm
A24: =Auslegung!A104 -> Anströmgeschwindigkeit | B24: v0 | C24: =Auslegung!D104 -> 0.1592592593 | E24: m | F24: =Auslegung!J118 -> Höhe Durchlass | H24: =Auslegung!K118 -> 1533 | I24: =Auslegung!L118 -> mm
A25: =Auslegung!A105 -> Austrittsgeschwindigkeit | B25: vSUP | C25: =Auslegung!D105 -> 0.1592592593 | E25: m/s | F25: =Auslegung!J123 -> Stutzendurchmesser | H25: =Auslegung!K123 -> -/- | I25: =Auslegung!L123 -> mm
A26: =Auslegung!A106 -> Nahzone | B26: LN | C26: =Auslegung!D106 -> 2.2 | E26: m | F26: =Auslegung!J124 -> Abstand Wand - Stutzenmitte | H26: =Auslegung!K124 -> -/- | I26: =Auslegung!L124 -> mm
A27: =Auslegung!A107 -> Temperatur in Fußbodennähe | B27: t0,1 | C27: =Auslegung!D107 -> 18.77547196 | E27: °C | F27: =IF(Auslegung!$D$27="rund","",Auslegung!A31) ->  | H27: =IF(Auslegung!$D$27="rund","",Auslegung!D31) ->  | I27: =IF(H27="","","mm") -> 
A28: =Auslegung!A116 -> Schallleistungspegel, Zuluftdurchlass* | B28: LWA_SUP | C28: =Auslegung!D116 -> <25 | E28: dB(A)
A29: =Auslegung!A118 -> Schallldruckpegel in 1,5m Entfernung | B29: LPA_SUP | C29: =Auslegung!D118 -> <25 | E29: dB(A)
A30: *Schallleistungspegel nur gültig für Anströmgeschwindigkeiten <3m/s
A31: Oktavspektrum Schallleistungspegel | B31: f [Hz] | C31: 125 | D31: 250 | E31: 500 | F31: 1000 | G31: 2000 | H31: 4000 | I31: 8000
A32: =Auslegung!D69 -> Zuluft | B32: LWA_Okt | C32: =IF(Auslegung!$D$125="",Auslegung!$E$125,Auslegung!$D$125) -> 0 | D32: =IF(Auslegung!$D$126="",Auslegung!$E$126,Auslegung!$D$126) -> 0 | E32: =IF(Auslegung!$D$127="",Auslegung!$E$127,Auslegung!$D$127) -> 0 | F32: =IF(Auslegung!$D$128="",Auslegung!$E$128,Auslegung!$D$128) -> 0 | G32: =IF(Auslegung!$D$129="",Auslegung!$E$129,Auslegung!$D$129) -> 0 | H32: =IF(Auslegung!$D$130="",Auslegung!$E$130,Auslegung!$D$130) -> 0 | I32: =IF(Auslegung!$D$131="",Auslegung!$E$131,Auslegung!$D$131) -> 0
I43: technische Änderungen vorbehalten
H44: Stand: | I44: =Grunddaten!$E$36 -> 2020-10-30

Sheet Grunddaten (hidden)
A1: Typ | B1: DN | D1: Breite | E1: Tiefe | F1: Höhe | G1: min. Baubreite | H1: max. Baubreite | I1: min. Bauhöhe | J1: max. Bauhöhe | K1: Stutzendurchmesser | L1: Nenndurch-messer, Stutzen rund | M1: Abmessungen Rechteckstutzen | O1: Abstand Wand-Stutzenmitte | P1: Soll-Volumenstrom | Q1: v Auslegung min | R1: v Auslegung max | S1: Volumenstrom minimal | T1: Volumenstrom maximal | U1: Aktive Fläche | V1: Anströmgeschwindigkeit | W1: Druckverlust, Zuluft | AC1: Totaldruckverlust
B2: Nenngröße | D2: b | E2: t | F2: h | G2: bmin | H2: bmax | I2: hmin | J2: hmax | K2: d | L2: DN | M2: l | N2: b | O2: e | P2: V° | Q2: vmin | R2: vmax | S2: V°min | T2: V°max | U2: Aakt | V2: v | W2: K1 | X2: K2 | Y2: K3 | Z2: K4 | AA2: K5 | AB2: K6 | AD2: Ausströmgeschwindigkeit | AE2: im Auslegungsbereich? | AF2: Schallleistungspegel | AK2: LW,A
D3: mm | E3: mm | F3: mm | I3: mm | J3: mm | K3: mm | L3: mm | M3: mm | N3: mm | O3: mm | P3: m³/h | Q3: m/s | R3: m/s | S3: m³/h | T3: m³/h | U3: mm² | V3: m/s | W3: Pa | X3: Pa | Y3: mm | Z3: mm | AA3: mm | AB3: mm | AF3: K1 | AG3: K2 | AH3: K3 | AI3: K4 | AJ3: K5
A4: QAL-L | B4: 400 | C4: =CONCATENATE(A4,B4) -> QAL-L400 | D4: 402 | E4: 332 | F4: =Auslegung!$D$18 -> 1500 | G4: 400 | H4: 400 | I4: 600 | J4: 1500 | K4: 224 | L4: =Auslegung!$D$30 -> 355 | M4: =Auslegung!$D$30 -> 355 | N4: =Auslegung!$D$31 -> 250 | O4: 166 | P4: =Auslegung!$D$26 -> 860 | Q4: 0.15 | R4: 0.25 | S4: =Q4*U4*3600 -> 324 | T4: =R4*U4*3600 -> 540 | U4: =(D4-2)/1000*Auslegung!$D$18/1000 -> 0.6 | V4: =IF(Auslegung!$D$27="rund",(Auslegung!$D$26/(PI()*(L4/1000)^2/4))/3600,(Auslegung!$D$26/((Auslegung!$D$30/1000)*(Auslegung!$D$31/1000))/3600)) -> 2.413511447 | W4: 5.419164592e-05 | X4: 1.984842659 | Y4: =Z4*Auslegung!$D$18^Grunddaten!AA4 -> 0.6720566233 | Z4: 525.6312337 | AA4: -0.910954712 | AC4: =W4*P4^X4*Y4 -> 24.31397226 | AD4: =P4/U4/3600 -> 0.3981481481 | AE4: =IF(AND(Q4<AD4,AD4<R4),"x","") ->  | AF4: -4.038514199 | AG4: 2.092826448 | AH4: 24.66379531 | AI4: -0.0120011565 | AJ4: 12.00138138 | AK4: =AF4+AG4*LOG(P4)+AH4*LOG(AC4) -> 36.28334843 | AM4: L-400
A5: QAL-L | B5: 600 | C5: =CONCATENATE(A5,B5) -> QAL-L600 | D5: 602 | E5: 382 | F5: =Auslegung!$D$18 -> 1500 | G5: 600 | H5: 600 | I5: 600 | J5: 1500 | K5: 280 | L5: =Auslegung!$D$30 -> 355 | M5: =Auslegung!$D$30 -> 355 | N5: =Auslegung!$D$31 -> 250 | O5: 191 | P5: =Auslegung!$D$26 -> 860 | Q5: 0.15 | R5: 0.25 | S5: =Q5*U5*3600 -> 486 | T5: =R5*U5*3600 -> 810 | U5: =(D5-2)/1000*Auslegung!$D$18/1000 -> 0.9 | V5: =IF(Auslegung!$D$27="rund",(Auslegung!$D$26/(PI()*(L5/1000)^2/4))/3600,(Auslegung!$D$26/((Auslegung!$D$30/1000)*(Auslegung!$D$31/1000))/3600)) -> 2.413511447 | W5: 1.763534035e-05 | X5: 2.071309444 | Y5: =Z5*Auslegung!$D$18^Grunddaten!AA5 -> 0.6720566233 | Z5: 525.6312337 | AA5: -0.910954712 | AC5: =W5*P5^X5*Y5 -> 14.19201521 | AD5: =P5/U5/3600 -> 0.2654320988 | AE5: =IF(AND(Q5<AD5,AD5<R5),"x","") ->  | AF5: -3.46984522 | AG5: 3.089247907 | AH5: 23.09706091 | AI5: -0.0120011565 | AJ5: 12.00138138 | AK5: =AF5+AG5*LOG(P5)+AH5*LOG(AC5) -> 32.20437999
A6: QAL-L | B6: 800 | C6: QAL-L800 | D6: 802 | E6: 382 | F6: =Auslegung!$D$18 -> 1500 | G6: 800 | H6: 800 | I6: 600 | J6: 1500 | K6: 280 | L6: =Auslegung!$D$30 -> 355 | M6: =Auslegung!$D$30 -> 355 | N6: =Auslegung!$D$31 -> 250 | O6: 191 | P6: =Auslegung!$D$26 -> 860 | Q6: 0.15 | R6: 0.25 | S6: 648 | T6: 1080 | U6: =(D6-2)/1000*Auslegung!$D$18/1000 -> 1.2 | V6: =IF(Auslegung!$D$27="rund",(Auslegung!$D$26/(PI()*(L6/1000)^2/4))/3600,(Auslegung!$D$26/((Auslegung!$D$30/1000)*(Auslegung!$D$31/1000))/3600)) -> 2.413511447 | W6: 1.895205589e-05 | X6: 2.038873682 | Y6: =Z6*Auslegung!$D$18^Grunddaten!AA6 -> 0.6720566233 | Z6: 525.6312337 | AA6: -0.910954712 | AC6: 12.24993699 | AD6: 0.1990740741 | AE6: x | AF6: -2.848307288 | AG6: 3.036546379 | AH6: 22.67012769 | AI6: -0.0120011565 | AJ6: 12.00138138 | AK6: 30.73056678
A7: QAL-L | B7: 1000 | C7: QAL-L1000 | D7: 1002 | E7: 402 | F7: =Auslegung!$D$18 -> 1500 | G7: 1000 | H7: 1000 | I7: 600 | J7: 1500 | K7: 315 | L7: =Auslegung!$D$30 -> 355 | M7: =Auslegung!$D$30 -> 355 | N7: =Auslegung!$D$31 -> 250 | O7: 201 | P7: =Auslegung!$D$26 -> 860 | Q7: 0.15 | R7: 0.25 | S7: 810 | T7: 1350 | U7: =(D7-2)/1000*Auslegung!$D$18/1000 -> 1.5 | V7: =IF(Auslegung!$D$27="rund",(Auslegung!$D$26/(PI()*(L7/1000)^2/4))/3600,(Auslegung!$D$26/((Auslegung!$D$30/1000)*(Auslegung!$D$31/1000))/3600)) -> 2.413511447 | W7: 1.50756219e-05 | X7: 2.047967299 | Y7: =Z7*Auslegung!$D$18^Grunddaten!AA7 -> 0.6720566233 | Z7: 525.6312337 | AA7: -0.910954712 | AC7: 10.36186594 | AD7: 0.1592592593 | AE7: x | AF7: -2.817717223 | AG7: 3.101253146 | AH7: 22.71853296 | AI7: -0.0120011565 | AJ7: 12.00138138 | AK7: 29.3521663
A8: QAL-R | B8: 400 | C8: QAL-R400 | D8: 402 | E8: 402 | F8: =Auslegung!$D$18 -> 1500 | G8: 400 | H8: 400 | I8: 600 | J8: 1500 | K8: 315 | L8: =Auslegung!$D$30 -> 355 | M8: =Auslegung!$D$30 -> 355 | N8: =Auslegung!$D$31 -> 250 | O8: -/- | P8: =Auslegung!$D$26 -> 860 | Q8: 0.15 | R8: 0.25 | S8: 1017.87602 | T8: 1696.460033 | U8: =((D8-2)/1000)*PI()*Auslegung!$D$18/1000 -> 1.884955592 | V8: =IF(Auslegung!$D$27="rund",(Auslegung!$D$26/(PI()*(L8/1000)^2/4))/3600,(Auslegung!$D$26/((Auslegung!$D$30/1000)*(Auslegung!$D$31/1000))/3600)) -> 2.413511447 | W8: 8.218210898e-05 | X8: 1.836887377 | Y8: =Z8*Auslegung!$D$18^Grunddaten!AA8 -> 0.6720566233 | Z8: 525.6312337 | AA8: -0.910954712 | AC8: 13.56832731 | AD8: 0.1267344917 | AF8: -5.338027217 | AG8: 0.2161841806 | AH8: 26.52002913 | AI8: -0.0120011565 | AJ8: 12.00138138 | AK8: =AF8+AG8*LOG(P8)+AH8*LOG(AC8) -> 25.3309957 | AM8: R-400
A9: QAL-R | B9: 600 | C9: QAL-R600 | D9: 602 | E9: 602 | F9: =Auslegung!$D$18 -> 1500 | G9: 600 | H9: 600 | I9: 600 | J9: 1500 | K9: 400 | L9: =Auslegung!$D$30 -> 355 | M9: =Auslegung!$D$30 -> 355 | N9: =Auslegung!$D$31 -> 250 | O9: -/- | P9: =Auslegung!$D$26 -> 860 | Q9: 0.15 | R9: 0.25 | S9: 1526.81403 | T9: 2544.690049 | U9: =(D9-2)/1000*PI()*Auslegung!$D$18/1000 -> 2.827433388 | V9: =IF(Auslegung!$D$27="rund",(Auslegung!$D$26/(PI()*(L9/1000)^2/4))/3600,(Auslegung!$D$26/((Auslegung!$D$30/1000)*(Auslegung!$D$31/1000))/3600)) -> 2.413511447 | W9: 2.71943895e-05 | X9: 1.905076766 | Y9: =Z9*Auslegung!$D$18^Grunddaten!AA9 -> 0.6720566233 | Z9: 525.6312337 | AA9: -0.910954712 | AC9: =W9*P9^X9*Y9 -> 7.117541321 | AD9: 0.08448966115 | AF9: -4.0285722 | AG9: 2.124632531 | AH9: 23.70364217 | AI9: -0.0120011565 | AJ9: 12.00138138 | AK9: =AF9+AG9*LOG(P9)+AH9*LOG(AC9) -> 22.40948393
A10: QAL-R | B10: 800 | C10: QAL-R800 | D10: 802 | E10: 802 | F10: =Auslegung!$D$18 -> 1500 | G10: 800 | H10: 800 | I10: 600 | J10: 1500 | K10: 450 | L10: =Auslegung!$D$30 -> 355 | M10: =Auslegung!$D$30 -> 355 | N10: =Auslegung!$D$31 -> 250 | O10: -/- | P10: =Auslegung!$D$26 -> 860 | Q10: 0.15 | R10: 0.25 | S10: 2035.75204 | T10: 3392.920066 | U10: =(D10-2)/1000*PI()*Auslegung!$D$18/1000 -> 3.769911184 | V10: =IF(Auslegung!$D$27="rund",(Auslegung!$D$26/(PI()*(L10/1000)^2/4))/3600,(Auslegung!$D$26/((Auslegung!$D$30/1000)*(Auslegung!$D$31/1000))/3600)) -> 2.413511447 | W10: 1.430790075e-05 | X10: 1.953465982 | Y10: =Z10*Auslegung!$D$18^Grunddaten!AA10 -> 0.6720566233 | Z10: 525.6312337 | AA10: -0.910954712 | AC10: 5.193076052 | AD10: 0.06336724586 | AF10: -3.04435204 | AG10: 2.733764153 | AH10: 22.16330148 | AI10: -0.0120011565 | AJ10: 12.00138138 | AK10: =AF10+AG10*LOG(P10)+AH10*LOG(AC10) -> 20.83404756
A11: QAL-R | B11: 1000 | C11: QAL-R1000 | D11: 1002 | E11: 1002 | F11: =Auslegung!$D$18 -> 1500 | G11: 1000 | H11: 1000 | I11: 600 | J11: 1500 | K11: 500 | L11: =Auslegung!$D$30 -> 355 | M11: =Auslegung!$D$30 -> 355 | N11: =Auslegung!$D$31 -> 250 | O11: -/- | P11: =Auslegung!$D$26 -> 860 | Q11: 0.15 | R11: 0.25 | S11: 2544.690049 | T11: 4241.150082 | U11: =(D11-2)/1000*PI()*Auslegung!$D$18/1000 -> 4.71238898 | V11: =IF(Auslegung!$D$27="rund",(Auslegung!$D$26/(PI()*(L11/1000)^2/4))/3600,(Auslegung!$D$26/((Auslegung!$D$30/1000)*(Auslegung!$D$31/1000))/3600)) -> 2.413511447 | W11: 1.777075753e-05 | X11: 1.895534298 | Y11: =Z11*Auslegung!$D$18^Grunddaten!AA11 -> 0.6720566233 | Z11: 525.6312337 | AA11: -0.910954712 | AC11: 4.360680506 | AD11: 0.05069379669 | AF11: -3.230493758 | AG11: 2.49013676 | AH11: 22.93640538 | AI11: -0.0120011565 | AJ11: 12.00138138 | AK11: =AF11+AG11*LOG(P11)+AH11*LOG(AC11) -> 18.74588467
A12: QAL-H | C12: QAL-H | Y12: =Z12*Auslegung!$D$18^Grunddaten!AA12 -> 0.6720566233 | Z12: 525.6312337 | AA12: -0.910954712
A13: QAL-H | B13: 600 | C13: QAL-H600 | D13: 602 | E13: 386 | F13: =Auslegung!$D$18 -> 1500 | G13: 600 | H13: 600 | I13: 600 | J13: 1500 | K13: 280 | L13: =Auslegung!$D$30 -> 355 | M13: =Auslegung!$D$30 -> 355 | N13: =Auslegung!$D$31 -> 250 | O13: 193 | P13: =Auslegung!$D$26 -> 860 | Q13: 0.15 | R13: 0.25 | S13: 763.4070148 | T13: 1272.345025 | U13: =(D13-2)/1000*PI()*Auslegung!$D$18/1000/2 -> 1.413716694 | V13: =IF(Auslegung!$D$27="rund",(Auslegung!$D$26/(PI()*(L13/1000)^2/4))/3600,(Auslegung!$D$26/((Auslegung!$D$30/1000)*(Auslegung!$D$31/1000))/3600)) -> 2.413511447 | W13: 1.400682042e-05 | X13: 2.062483488 | Y13: =Z13*Auslegung!$D$18^Grunddaten!AA13 -> 0.6720566233 | Z13: 525.6312337 | AA13: -0.910954712 | AC13: =W13*P13^X13*Y13 -> 10.61940116 | AD13: 0.1689793223 | AE13: x | AF13: -119.6488948 | AG13: 50.32683971 | AH13: -0.137152143 | AI13: -0.0120011565 | AJ13: 12.00138138 | AK13: =AF13+AG13*LOG(P13)+AH13*LOG(AC13)+AI13*Auslegung!$D$18+Grunddaten!AJ13 -> 21.89405321
A14: QAL-H | B14: 800 | C14: QAL-H800 | D14: 802 | E14: 404 | F14: =Auslegung!$D$18 -> 1500 | G14: 800 | H14: 800 | I14: 600 | J14: 1500 | K14: 315 | L14: =Auslegung!$D$30 -> 355 | M14: =Auslegung!$D$30 -> 355 | N14: =Auslegung!$D$31 -> 250 | O14: 202 | P14: =Auslegung!$D$26 -> 860 | Q14: 0.15 | R14: 0.25 | S14: 1017.87602 | T14: 1696.460033 | U14: =(D14-2)/1000*PI()*Auslegung!$D$18/1000/2 -> 1.884955592 | V14: =IF(Auslegung!$D$27="rund",(Auslegung!$D$26/(PI()*(L14/1000)^2/4))/3600,(Auslegung!$D$26/((Auslegung!$D$30/1000)*(Auslegung!$D$31/1000))/3600)) -> 2.413511447 | W14: 1.574433739e-05 | X14: 2.012205818 | Y14: =Z14*Auslegung!$D$18^Grunddaten!AA14 -> 0.6720566233 | Z14: 525.6312337 | AA14: -0.910954712 | AC14: 8.498555396 | AD14: 0.1267344917 | AF14: -120.9712878 | AG14: 49.83345238 | AH14: -0.229931745 | AI14: -0.0120011565 | AJ14: 12.00138138 | AK14: =AF14+AG14*LOG(P14)+AH14*LOG(AC14)+(AI14*Auslegung!$D$18+Grunddaten!AJ14) -> 19.05086174 | AM14: H-800
A15: QAL-H | B15: 1000 | C15: QAL-H1000 | D15: 1002 | E15: 504 | F15: =Auslegung!$D$18 -> 1500 | G15: 1000 | H15: 1000 | I15: 600 | J15: 1500 | K15: 355 | L15: =Auslegung!$D$30 -> 355 | M15: =Auslegung!$D$30 -> 355 | N15: =Auslegung!$D$31 -> 250 | O15: 252 | P15: =Auslegung!$D$26 -> 860 | Q15: 0.15 | R15: 0.25 | S15: 1272.345025 | T15: 2120.575041 | U15: =(D15-2)/1000*PI()*Auslegung!$D$18/1000/2 -> 2.35619449 | V15: =IF(Auslegung!$D$27="rund",(Auslegung!$D$26/(PI()*(L15/1000)^2/4))/3600,(Auslegung!$D$26/((Auslegung!$D$30/1000)*(Auslegung!$D$31/1000))/3600)) -> 2.413511447 | W15: 1.25782668e-05 | X15: 1.99881045 | Y15: =Z15*Auslegung!$D$18^Grunddaten!AA15 -> 0.6720566233 | Z15: 525.6312337 | AA15: -0.910954712 | AC15: 6.20201537 | AD15: 0.1013875934 | AF15: -121.5225038 | AG15: 48.87181174 | AH15: 0.08336454733 | AI15: -0.0120011565 | AJ15: 12.00138138 | AK15: =AF15+AG15*LOG(P15)+AH15*LOG(AC15)+AI15*Auslegung!$D$18+Grunddaten!AJ15 -> 15.95746785 | AM15: 1250 | AN15: =AI15*AM15+AJ15 -> -3.00006425
A16: QAL-V | B16: 800 | C16: QAL-V800 | D16: 404 | E16: 404 | F16: =Auslegung!$D$18 -> 1500 | G16: 800 | H16: 800 | I16: 600 | J16: 1500 | K16: 224 | L16: =Auslegung!$D$30 -> 355 | M16: =Auslegung!$D$30 -> 355 | N16: =Auslegung!$D$31 -> 250 | O16: 169 | P16: =Auslegung!$D$26 -> 860 | Q16: 0.15 | R16: 0.25 | S16: 511.4826999 | T16: 852.4711666 | U16: =(D16-2)/1000*PI()*Auslegung!$D$18/1000/2 -> 0.9471901851 | V16: =IF(Auslegung!$D$27="rund",(Auslegung!$D$26/(PI()*(L16/1000)^2/4))/3600,(Auslegung!$D$26/((Auslegung!$D$30/1000)*(Auslegung!$D$31/1000))/3600)) -> 2.413511447 | W16: 0.0001217001308 | X16: 1.920037504 | Y16: =Z16*Auslegung!$D$18^Grunddaten!AA16 -> 0.6720566233 | Z16: 525.6312337 | AA16: -0.910954712 | AC16: =W16*P16^X16*Y16 -> 35.24065678 | AD16: 0.2522079437 | AF16: -87.86894999 | AG16: 44.53604813 | AH16: 2.133500618 | AI16: -0.0120011565 | AJ16: 12.00138138 | AK16: =AF16+AG16*LOG(P16)+AH16*LOG(AC16)+AI16*Auslegung!$D$18+Grunddaten!AJ16 -> 40.12228021 | AM16: V-400
A17: QAL-V | B17: 1000 | C17: QAL-V1000 | D17: 504 | E17: 504 | F17: =Auslegung!$D$18 -> 1500 | G17: 1000 | H17: 1000 | I17: 600 | J17: 1500 | K17: 280 | L17: =Auslegung!$D$30 -> 355 | M17: =Auslegung!$D$30 -> 355 | N17: =Auslegung!$D$31 -> 250 | O17: 210 | P17: =Auslegung!$D$26 -> 860 | Q17: 0.15 | R17: 0.25 | S17: 638.7172024 | T17: 1064.528671 | U17: =(D17-2)/1000*PI()*Auslegung!$D$18/1000/2 -> 1.182809634 | V17: =IF(Auslegung!$D$27="rund",(Auslegung!$D$26/(PI()*(L17/1000)^2/4))/3600,(Auslegung!$D$26/((Auslegung!$D$30/1000)*(Auslegung!$D$31/1000))/3600)) -> 2.413511447 | W17: 0.0001073777718 | X17: 1.855929191 | Y17: =Z17*Auslegung!$D$18^Grunddaten!AA17 -> 0.6720566233 | Z17: 525.6312337 | AA17: -0.910954712 | AC17: =W17*P17^X17*Y17 -> 20.1623705 | AD17: 0.2019673175 | AE17: x | AF17: -103.1375047 | AG17: 50.55796027 | AH17: -2.084792729 | AI17: -0.0120011565 | AJ17: 12.00138138 | AK17: =AF17+AG17*LOG(P17)+AH17*LOG(AC17)+AI17*Auslegung!$D$18+Grunddaten!AJ17 -> 36.50469916
A18: QAL-V | B18: 1200 | C18: QAL-V1200 | D18: 602 | E18: 602 | F18: =Auslegung!$D$18 -> 1500 | G18: 1200 | H18: 1200 | I18: 600 | J18: 1500 | K18: 280 | L18: =Auslegung!$D$30 -> 355 | M18: =Auslegung!$D$30 -> 355 | N18: =Auslegung!$D$31 -> 250 | O18: 251 | P18: =Auslegung!$D$26 -> 860 | Q18: 0.15 | R18: 0.25 | S18: 763.4070148 | T18: 1272.345025 | U18: =(D18-2)/1000*PI()*Auslegung!$D$18/1000/2 -> 1.413716694 | V18: =IF(Auslegung!$D$27="rund",(Auslegung!$D$26/(PI()*(L18/1000)^2/4))/3600,(Auslegung!$D$26/((Auslegung!$D$30/1000)*(Auslegung!$D$31/1000))/3600)) -> 2.413511447 | W18: 2.909938173e-05 | X18: 2.019827162 | Y18: =Z18*Auslegung!$D$18^Grunddaten!AA18 -> 0.6720566233 | Z18: 525.6312337 | AA18: -0.910954712 | AC18: 16.53747899 | AD18: 0.1689793223 | AE18: x | AF18: -99.35916661 | AG18: 47.68403023 | AH18: 0.4005513267 | AI18: -0.0120011565 | AJ18: 12.00138138 | AK18: =AF18+AG18*LOG(P18)+AH18*LOG(AC18)+AI18*Auslegung!$D$18+Grunddaten!AJ18 -> 35.05725236
A19: QAL-V | B19: 1400 | C19: QAL-V1400 | D19: 704 | E19: 704 | F19: =Auslegung!$D$18 -> 1500 | G19: 1400 | H19: 1400 | I19: 600 | J19: 1500 | K19: 315 | L19: =Auslegung!$D$30 -> 355 | M19: =Auslegung!$D$30 -> 355 | N19: =Auslegung!$D$31 -> 250 | O19: 293 | P19: =Auslegung!$D$26 -> 860 | Q19: 0.15 | R19: 0.25 | S19: 893.1862073 | T19: 1488.643679 | U19: =(D19-2)/1000*PI()*Auslegung!$D$18/1000/2 -> 1.654048532 | V19: =IF(Auslegung!$D$27="rund",(Auslegung!$D$26/(PI()*(L19/1000)^2/4))/3600,(Auslegung!$D$26/((Auslegung!$D$30/1000)*(Auslegung!$D$31/1000))/3600)) -> 2.413511447 | W19: 3.441957754e-05 | X19: 1.980346533 | Y19: =Z19*Auslegung!$D$18^Grunddaten!AA19 -> 0.6720566233 | Z19: 525.6312337 | AA19: -0.910954712 | AC19: 14.98080795 | AD19: 0.1444267712 | AF19: -98.85646299 | AG19: 47.09737486 | AH19: 0.4996484831 | AI19: -0.0120011565 | AJ19: 12.00138138 | AK19: =AF19+AG19*LOG(P19)+AH19*LOG(AC19)+AI19*Auslegung!$D$18+Grunddaten!AJ19 -> 33.93771161
A20: QAL-K | C20: QAL-K | D20: =Auslegung!$D$19+33 -> 1033 | E20: 6.5 | F20: =Auslegung!$D$18+33 -> 1533 | G20: 200 | H20: 1000 | I20: 200 | J20: 1000 | K20: -/- | L20: -/- | O20: -/- | P20: =Auslegung!$D$26 -> 860 | Q20: 0.15 | R20: 0.25 | S20: =U20*Q20*3600 -> 810 | T20: 1350 | U20: =(Auslegung!D18/1000)*(Auslegung!D19/1000) -> 1.5 | V20: =P20/U20/3600 -> 0.1592592593 | W20: 39.17989965 | X20: 1.415873446 | Y20: =Z20*Auslegung!$D$18^Grunddaten!AA20 -> 0.6720566233 | Z20: 525.6312337 | AA20: -0.910954712 | AC20: =W20*V20^X20 -> 2.906327417 | AD20: 0.1592592593 | AF20: 40.98601664 | AG20: 67.71748359 | AH20: 13.54905721 | AK20: =AF20+AG20*LOG(AD20)+AH20*LOG(U20) -> -10.65957528
B21: 125 | C21: 125 | P21: =Auslegung!$D$26 -> 860 | Q21: 0.15 | R21: 0.25 | Y21: =Z21*Auslegung!$D$18^Grunddaten!AA21 -> 0.6720566233 | Z21: 525.6312337 | AA21: -0.910954712
B22: 180 | C22: 180 | P22: =Auslegung!$D$26 -> 860 | Q22: 0.15 | R22: 0.25
B23: 250 | C23: 250 | P23: =Auslegung!$D$26 -> 860 | Q23: 0.15 | R23: 0.25
B24: 315 | C24: 315 | P24: =Auslegung!$D$26 -> 860 | Q24: 0.15 | R24: 0.25
B25: 355 | C25: 355 | P25: =Auslegung!$D$26 -> 860 | Q25: 0.15 | R25: 0.25
B26: 300 | C26: 300 | P26: =Auslegung!$D$26 -> 860 | Q26: 0.15 | R26: 0.25
B27: 400 | C27: 400 | P27: =Auslegung!$D$26 -> 860 | Q27: 0.15 | R27: 0.25
B28: 500 | C28: 500 | P28: =Auslegung!$D$26 -> 860 | Q28: 0.15 | R28: 0.25
B29: 600 | C29: 600 | P29: =Auslegung!$D$26 -> 860 | Q29: 0.15 | R29: 0.25
D31: 2 | E31: 3 | F31: 4 | G31: 5 | H31: 6 | I31: 7 | J31: 8 | K31: 9 | L31: 10 | M31: 11 | N31: 12 | O31: 13 | P31: 14 | Q31: 15 | R31: 16 | S31: 17 | T31: 18 | U31: 19 | V31: 20 | W31: 21 | X31: 22 | Y31: 23 | Z31: 24 | AA31: 25 | AB31: 26 | AC31: 27 | AD31: 28 | AE31: 29 | AF31: 30 | AG31: 31 | AH31: 32 | AI31: 33 | AJ31: 34 | AK31: 35 | AL31: 36
A33: Auswahl: | B33: Zuluft | C33: =IF(Auslegung!$D$12="QAL-K",Grunddaten!A20,CONCATENATE(Auslegung!$D$12,Auslegung!$D$19)) -> QAL-K | D33: =VLOOKUP($C$33,$C$4:$W$30,D31,FALSE) -> 1033 | E33: =VLOOKUP($C$33,$C$4:$W$30,E31,FALSE) -> 6.5 | F33: =VLOOKUP($C$33,$C$4:$W$30,F31,FALSE) -> 1533 | G33: =VLOOKUP($C$33,$C$4:$W$30,G31,FALSE) -> 200 | H33: 1000 | I33: =VLOOKUP($C$33,$C$4:$W$30,I31,FALSE) -> 200 | J33: 1000 | K33: =VLOOKUP($C$33,$C$4:$AL$29,K31,FALSE) -> -/- | L33: =VLOOKUP($C$33,$C$4:$AL$29,L31,FALSE) -> -/- | O33: =VLOOKUP($C$33,$C$4:$AL$29,O31,FALSE) -> -/- | P33: =VLOOKUP($C$33,$C$4:$W$30,P31,FALSE) -> 860 | Q33: =VLOOKUP($C$33,$C$4:$W$30,Q31,FALSE) -> 0.15 | R33: =VLOOKUP($C$33,$C$4:$W$30,R31,FALSE) -> 0.25 | S33: =VLOOKUP($C$33,$C$4:$W$30,S31,FALSE) -> 810 | T33: 1350 | U33: =VLOOKUP($C$33,$C$4:$W$30,U31,FALSE) -> 1.5 | V33: =VLOOKUP($C$33,$C$4:$AK$29,V31,FALSE) -> 0.1592592593 | W33: 39.17989965 | X33: 1.415873446 | Y33: 0.6720566233 | Z33: 525.6312337 | AA33: -0.910954712 | AB33: 0 | AC33: 2.906327417 | AD33: 0.1592592593 | AE33: 0 | AF33: 40.98601664 | AG33: 67.71748359 | AH33: 13.54905721 | AI33: 0 | AJ33: 0 | AK33: =VLOOKUP($C$33,$C$4:$AK$29,AK31,FALSE) -> -10.65957528
B34: Abluft | C34: =CONCATENATE(Auslegung!$D$12,Auslegung!$D$19) -> QAL-K1000 | D34: =VLOOKUP($C$34,$C$4:$W$30,D31,FALSE) ->  | E34: =VLOOKUP($C$34,$C$4:$W$30,E31,FALSE) ->  | K34: =VLOOKUP($C$34,$C$4:$W$30,K31,FALSE) ->  | P34: =VLOOKUP($C$34,$C$4:$W$30,P31,FALSE) ->  | Q34: =VLOOKUP($C$34,$C$4:$W$30,Q31,FALSE) ->  | R34: =VLOOKUP($C$34,$C$4:$W$30,R31,FALSE) ->  | U34: =VLOOKUP($C$34,$C$4:$W$30,U31,FALSE) ->  | V34: =VLOOKUP($C$34,$C$4:$W$30,V31,FALSE) ->  | W34: =VLOOKUP($C$34,$C$4:$W$30,W31,FALSE) ->  | X34: =VLOOKUP($C$33,$C$4:$X$30,X31,FALSE) -> 1.415873446 | Y34: =VLOOKUP($C$34,$C$4:$Y$30,Y31,FALSE) ->  | Z34: =VLOOKUP($C$34,$C$4:$AB$30,Z31,FALSE) ->  | AA34: =VLOOKUP($C$34,$C$4:$AB$30,AA31,FALSE) ->  | AB34: =VLOOKUP($C$34,$C$4:$AB$30,AB31,FALSE) ->  | AD34: =VLOOKUP($C$34,$C$4:$AD$30,AD31,FALSE) -> 
D36: Stand: | E36: 2020-10-30
W38: DP = K1 * V°^K2 * K3 | Z38: K3 = K4 * h^ K5 | AG38: LWA = K1 + K2 * log(V°) + K3 * log(Dp) + K4*h + K5
R39: 402 | S39: =R39/2 -> 201 | U39: =0.15*1*0.6*3600 -> 324
U40: =0.25*1*0.6*3600 -> 540
B41: Änderung am 18.01.18: | D41: Erweiterung der Temperaturbetrachtung in Fußbodennähe, die sich einstellenden lokalen Temperaturen in Fußbodennähe wurden nur bis auf 1,5m an den Durchlass heran ausgegeben. TU
B42: Änderung am 18.06.19: | D42: Anpassung der Akustikberechnungen und Druckverlustberechnungen für QAL-H und QAL-V und QAL-L. QAL-R ist nicht betroffen. TU
C43: 14.4.20: | D43: Änderung der emco-Logos, Anpassung des Datums
C44: 30.10.20: | D44: Logoänderung, Datumsänderung

Sheet Lw (hidden)
G2: Oktavbandkoeffizienten QAL-L, Datenherkunft:\\EMCO-WI\Daten\daten_EK\EMCOAIR\QAL\AKustikberechnung_QAL-L_600-1000.xlsx
A3: Koeffizienten werden nicht weiter verwendet | D3: Frequenz | E3: f | G3: 125 | H3: 250 | I3: 500 | J3: 1000 | K3: 2000 | L3: 4000 | M3: 8000
D4: Koeffizienten | F4: K1 | G4: -108.6417497 | H4: -13.97793347 | I4: -19.68313521 | J4: -59.76174453 | K4: -86.20672504 | L4: -3.047967242 | M4: 172.5216534 | O4: Zeta Konstant auf 3 gesetzt
F5: K2 | G5: 32.29092182 | H5: -12.41310724 | I5: -0.6046458869 | J5: 18.55160248 | K5: 17.66309849 | L5: -49.61978392 | M5: -133.2951421 | O5: LW = K1+K2*log(V°)+K3*log(v)+k4*log(zeta)
F6: K3 | G6: 24.3390809 | H6: 71.52612578 | I6: 51.78412763 | J6: 45.68276753 | K6: 71.33973448 | L6: 160.7517115 | M6: 206.2950214 | O6: Daten kommen A-bewertet raus
F7: K4 | G7: 34.46885343 | H7: 53.33635162 | I7: 31.09208585 | J7: 11.21949846 | K7: 34.37289335 | L7: 139.9456425 | M7: 220.8926864 | O7: Daten gelten für Bauhöhe 600mm
E9: A-Bewertung | G9: -16.1 | H9: -8.6 | I9: -3.2 | J9: 0 | K9: 1.2 | L9: 1 | M9: -1.1
G15: Terzbandkoeffizienten QAL-L, Datenherkunft:\\EMCO-WI\Daten\daten_EK\EMCOAIR\QAL\CAP_LWA_QAL-L_131023.xls
A16: Lw =K1+ k2*log(V°)+k3*log(v) | D16: Frequenz | E16: f | F16: Hz | G16: 100 | H16: 125 | I16: 160 | J16: 200 | K16: 250 | L16: 315 | M16: 400 | N16: 500 | O16: 630 | P16: 800 | Q16: 1000 | R16: 1250 | S16: 1600 | T16: 2000 | U16: 2500 | V16: 3150 | W16: 4000 | X16: 5000 | Y16: 6300 | Z16: 8000 | AA16: 10000
D17: Koeffizienten | F17: k1 | G17: -16.68458674 | H17: -28.18676607 | I17: -24.66597082 | J17: -19.23081761 | K17: -19.52343686 | L17: -20.67258014 | M17: -19.41653941 | N17: -10.59260641 | O17: -16.64881187 | P17: -16.6141744 | Q17: -17.23372593 | R17: -21.75231846 | S17: -28.6312726 | T17: -36.92761789 | U17: -44.44946573 | V17: -48.12132993 | W17: -46.13257486 | X17: -40.62224698 | Y17: -28.957802 | Z17: -15.70904272 | AA17: -3.214160035
F18: k2 | G18: 87.03276563 | H18: 147.6336927 | I18: 124.8461384 | J18: 83.79381054 | K18: 87.57372205 | L18: 96.91735342 | M18: 96.56720228 | N18: 42.8372223 | O18: 83.28760218 | P18: 69.77435351 | Q18: 75.71229915 | R18: 93.46313607 | S18: 114.2147888 | T18: 145.4473537 | U18: 170.0599835 | V18: 175.8292657 | W18: 164.8622066 | X18: 145.6788356 | Y18: 107.8781895 | Z18: 62.52306979 | AA18: 21.95912583
F19: k3 | G19: -113.8034256 | H19: -202.1325475 | I19: -161.60997 | J19: -89.35385133 | K19: -94.31812871 | L19: -110.2409957 | M19: -111.7859089 | N19: -22.41997636 | O19: -87.98069665 | P19: -55.42218023 | Q19: -64.67369904 | R19: -86.09289078 | S19: -105.964685 | T19: -147.1851521 | U19: -177.1985193 | V19: -179.8429705 | W19: -166.4715573 | X19: -147.9017194 | Y19: -109.9306122 | Z19: -61.80225614 | AA19: -19.92508119
F20: k4 | G20: 1 | H20: 1 | I20: 1 | J20: 1 | K20: 1 | L20: 1 | M20: 1 | N20: 1 | O20: 1 | P20: 1 | Q20: 1 | R20: 1 | S20: 1 | T20: 1 | U20: 1 | V20: 1 | W20: 1 | X20: 1 | Y20: 1 | Z20: 1 | AA20: 1
G24: Terzbandkoeffizienten QAL-H, Datenherkunft:\\EMCO-WI\Daten\daten_EK\EMCOAIR\QAL\CAP_LWA_QAL-H_131023.xls | AC24: DP = K1 * V°^K2 * K3 | AE24: Stutzen DN 280!
A25: Lw =K1*log(V°)+K2*log(Dp)+k3*log(v) | D25: Frequenz | E25: f | F25: Hz | G25: 100 | H25: 125 | I25: 160 | J25: 200 | K25: 250 | L25: 315 | M25: 400 | N25: 500 | O25: 630 | P25: 800 | Q25: 1000 | R25: 1250 | S25: 1600 | T25: 2000 | U25: 2500 | V25: 3150 | W25: 4000 | X25: 5000 | Y25: 6300 | Z25: 8000 | AA25: 10000 | AC25: Nenngröße | AD25: K1 | AE25: K2 | AF25: Höhe | AG25: K3 | AH25: K4 | AI25: K5 | AJ25: K6
D26: Koeffizienten | F26: k1 | G26: -5.571163281 | H26: -8.421488924 | I26: -8.586185294 | J26: -8.156731957 | K26: -6.788858859 | L26: -5.837838189 | M26: -4.910605897 | N26: -5.13438604 | O26: -5.836630096 | P26: -6.457610228 | Q26: -8.825992877 | R26: -12.24840269 | S26: -14.82041642 | T26: -18.75732633 | U26: -22.84285498 | V26: -24.65856841 | W26: -21.98613296 | X26: -17.45982025 | Y26: -10.26803152 | Z26: -3.090937677 | AA26: 3.862904643 | AC26: 400 | AF26: 750 | AG26: 1.25 | AH26: -6.468402471e-07 | AI26: 0.0007040438811 | AJ26: 0.9981538555
F27: k2 | G27: 16.6262295 | H27: 23.41359992 | I27: 25.15474241 | J27: 24.15115157 | K27: 23.57816785 | L27: 22.52777114 | M27: 21.6531811 | N27: 22.82212148 | O27: 24.72410287 | P27: 26.93776397 | Q27: 31.53101713 | R27: 37.34006259 | S27: 41.36076094 | T27: 47.08173301 | U27: 52.89266689 | V27: 54.21736608 | W27: 47.80993731 | X27: 38.77979329 | Y27: 25.70392356 | Z27: 12.45958864 | AA27: 0.4766815397 | AC27: 600 | AD27: 1.400682042e-05 | AE27: 2.062483488 | AF27: 1000 | AG27: 1
F28: k3 | G28: 8.530782012 | H28: 11.80183661 | I28: 12.64278653 | J28: 12.15914908 | K28: 11.88666392 | L28: 11.38209728 | M28: 10.96241922 | N28: 11.52663608 | O28: 12.44357587 | P28: 13.5114119 | Q28: 15.72362541 | R28: 18.52000527 | S28: 20.45484608 | T28: 23.20699471 | U28: 26.00213561 | V28: 26.63646877 | W28: 23.54846231 | X28: 19.19892206 | Y28: 12.90274905 | Z28: 6.525110257 | AA28: 0.7563877907 | AC28: 800 | AD28: 1.574433739e-05 | AE28: 2.012205818 | AF28: 1250 | AG28: 0.8
F29: b | G29: 1 | H29: 1 | I29: 1 | J29: 1 | K29: 1 | L29: 1 | M29: 1 | N29: 1 | O29: 1 | P29: 1 | Q29: 1 | R29: 1 | S29: 1 | T29: 1 | U29: 1 | V29: 1 | W29: 1 | X29: 1 | Y29: 1 | Z29: 1 | AA29: 1 | AC29: 1000 | AD29: 1.25782668e-05 | AE29: 1.99881045 | AF29: 1500 | AG29: 0.65
G33: Terzbandkoeffizienten QAL-V, Datenherkunft:\\EMCO-WI\Daten\daten_EK\EMCOAIR\QAL\CAP_LWA_QAL-V_131023.xls | AC33: DP = K1 * V°^K2 * K3 | AE33: Stutzen DN280! | AG33: K3 = K4 * h^2 + K5 * h + K6
A34: Lw =K1*log(V°)+K2*log(Dp)+k3*log(v) | D34: Frequenz | E34: f | F34: Hz | G34: 100 | H34: 125 | I34: 160 | J34: 200 | K34: 250 | L34: 315 | M34: 400 | N34: 500 | O34: 630 | P34: 800 | Q34: 1000 | R34: 1250 | S34: 1600 | T34: 2000 | U34: 2500 | V34: 3150 | W34: 4000 | X34: 5000 | Y34: 6300 | Z34: 8000 | AA34: 10000 | AC34: Nenngröße | AD34: K1 | AE34: K2 | AF34: Höhe | AG34: K3 | AH34: K4 | AI34: K5 | AJ34: K6
D35: Koeffizienten | F35: k1 | G35: -6.047626508 | H35: -9.408641304 | I35: -9.640828071 | J35: -11.52841893 | K35: -9.227627681 | L35: -10.19226655 | M35: -7.968234766 | N35: -8.009300949 | O35: -9.587377646 | P35: -11.0289503 | Q35: -13.02814371 | R35: -16.55352272 | S35: -21.80068339 | T35: -23.9769494 | U35: -23.43497188 | V35: -21.60366833 | W35: -18.58159857 | X35: -14.44778957 | Y35: -8.571570813 | Z35: -3.000383681 | AA35: 2.090828412 | AC35: 800 | AD35: 0.0001217001308 | AE35: 1.920037504 | AF35: 750 | AG35: 1.25 | AH35: -6.468402471e-07 | AI35: 0.0007040438811 | AJ35: 0.9981538555
F36: k2 | G36: 15.16206901 | H36: 19.9864279 | I36: 20.90817217 | J36: 24.42935935 | K36: 22.91732182 | L36: 24.57891916 | M36: 22.45934833 | N36: 23.03458684 | O36: 26.64615567 | P36: 29.35731145 | Q36: 32.69659309 | R36: 37.89430578 | S36: 45.2842999 | T36: 47.41185378 | U36: 45.81222162 | V36: 42.13125473 | W36: 36.86173827 | X36: 29.77190433 | Y36: 20.57019762 | Z36: 11.47323388 | AA36: 3.62962284 | AC36: 1000 | AD36: 0.0001073777718 | AE36: 1.855929191 | AF36: 1000 | AG36: 1
F37: k3 | G37: 9.033037877 | H37: 11.80331246 | I37: 12.31437126 | J37: 14.3111819 | K37: 13.3874606 | L37: 14.33301228 | M37: 13.08266378 | N37: 13.39698628 | O37: 15.4291324 | P37: 16.96606219 | Q37: 18.86901532 | R37: 21.84942227 | S37: 26.09734212 | T37: 27.34990465 | U37: 26.45680866 | V37: 24.37570255 | W37: 21.37866992 | X37: 17.34331888 | Y37: 12.08321956 | Z37: 6.893584879 | AA37: 2.406074252 | AC37: 1200 | AD37: 2.909938173e-05 | AE37: 2.019827162 | AF37: 1250 | AG37: 0.8
F38: b | G38: 1 | H38: 1 | I38: 1 | J38: 1 | K38: 1 | L38: 1 | M38: 1 | N38: 1 | O38: 1 | P38: 1 | Q38: 1 | R38: 1 | S38: 1 | T38: 1 | U38: 1 | V38: 1 | W38: 1 | X38: 1 | Y38: 1 | Z38: 1 | AA38: 1 | AC38: 1400 | AD38: 3.441957754e-05 | AE38: 1.980346533 | AF38: 1500 | AG38: 0.65
G40: 100 | H40: 125 | I40: 160 | J40: 200 | K40: 250 | L40: 315 | M40: 400 | N40: 500 | O40: 630 | P40: 800 | Q40: 1000 | R40: 1250 | S40: 1600 | T40: 2000 | U40: 2500 | V40: 3150 | W40: 4000 | X40: 5000 | Y40: 6300 | Z40: 8000 | AA40: 10000
D41: QAL-L | E41: k1 | F41: =CONCATENATE(D41,E41) -> QAL-Lk1 | G41: -16.68458674 | H41: -28.18676607 | I41: -24.66597082 | J41: -19.23081761 | K41: -19.52343686 | L41: -20.67258014 | M41: -19.41653941 | N41: -10.59260641 | O41: -16.64881187 | P41: -16.6141744 | Q41: -17.23372593 | R41: -21.75231846 | S41: -28.6312726 | T41: -36.92761789 | U41: -44.44946573 | V41: -48.12132993 | W41: -46.13257486 | X41: -40.62224698 | Y41: -28.957802 | Z41: -15.70904272 | AA41: -3.214160035
D42: QAL-L | E42: k2 | F42: =CONCATENATE(D42,E42) -> QAL-Lk2 | G42: 87.03276563 | H42: 147.6336927 | I42: 124.8461384 | J42: 83.79381054 | K42: 87.57372205 | L42: 96.91735342 | M42: 96.56720228 | N42: 42.8372223 | O42: 83.28760218 | P42: 69.77435351 | Q42: 75.71229915 | R42: 93.46313607 | S42: 114.2147888 | T42: 145.4473537 | U42: 170.0599835 | V42: 175.8292657 | W42: 164.8622066 | X42: 145.6788356 | Y42: 107.8781895 | Z42: 62.52306979 | AA42: 21.95912583
D43: QAL-L | E43: k3 | F43: QAL-Lk3 | G43: -113.8034256 | H43: -202.1325475 | I43: -161.60997 | J43: -89.35385133 | K43: -94.31812871 | L43: -110.2409957 | M43: -111.7859089 | N43: -22.41997636 | O43: -87.98069665 | P43: -55.42218023 | Q43: -64.67369904 | R43: -86.09289078 | S43: -105.964685 | T43: -147.1851521 | U43: -177.1985193 | V43: -179.8429705 | W43: -166.4715573 | X43: -147.9017194 | Y43: -109.9306122 | Z43: -61.80225614 | AA43: -19.92508119
D44: QAL-H | E44: k1 | F44: QAL-Hk1 | G44: -5.571163281 | H44: -8.421488924 | I44: -8.586185294 | J44: -8.156731957 | K44: -6.788858859 | L44: -5.837838189 | M44: -4.910605897 | N44: -5.13438604 | O44: -5.836630096 | P44: -6.457610228 | Q44: -8.825992877 | R44: -12.24840269 | S44: -14.82041642 | T44: -18.75732633 | U44: -22.84285498 | V44: -24.65856841 | W44: -21.98613296 | X44: -17.45982025 | Y44: -10.26803152 | Z44: -3.090937677 | AA44: 3.862904643
D45: QAL-H | E45: k2 | F45: QAL-Hk2 | G45: 16.6262295 | H45: 23.41359992 | I45: 25.15474241 | J45: 24.15115157 | K45: 23.57816785 | L45: 22.52777114 | M45: 21.6531811 | N45: 22.82212148 | O45: 24.72410287 | P45: 26.93776397 | Q45: 31.53101713 | R45: 37.34006259 | S45: 41.36076094 | T45: 47.08173301 | U45: 52.89266689 | V45: 54.21736608 | W45: 47.80993731 | X45: 38.77979329 | Y45: 25.70392356 | Z45: 12.45958864 | AA45: 0.4766815397
D46: QAL-H | E46: k3 | F46: QAL-Hk3 | G46: 8.530782012 | H46: 11.80183661 | I46: 12.64278653 | J46: 12.15914908 | K46: 11.88666392 | L46: 11.38209728 | M46: 10.96241922 | N46: 11.52663608 | O46: 12.44357587 | P46: 13.5114119 | Q46: 15.72362541 | R46: 18.52000527 | S46: 20.45484608 | T46: 23.20699471 | U46: 26.00213561 | V46: 26.63646877 | W46: 23.54846231 | X46: 19.19892206 | Y46: 12.90274905 | Z46: 6.525110257 | AA46: 0.7563877907
D47: QAL-V | E47: k1 | F47: QAL-Vk1 | G47: -6.047626508 | H47: -9.408641304 | I47: -9.640828071 | J47: -11.52841893 | K47: -9.227627681 | L47: -10.19226655 | M47: -7.968234766 | N47: -8.009300949 | O47: -9.587377646 | P47: -11.0289503 | Q47: -13.02814371 | R47: -16.55352272 | S47: -21.80068339 | T47: -23.9769494 | U47: -23.43497188 | V47: -21.60366833 | W47: -18.58159857 | X47: -14.44778957 | Y47: -8.571570813 | Z47: -3.000383681 | AA47: 2.090828412
D48: QAL-V | E48: k2 | F48: QAL-Vk2 | G48: 15.16206901 | H48: 19.9864279 | I48: 20.90817217 | J48: 24.42935935 | K48: 22.91732182 | L48: 24.57891916 | M48: 22.45934833 | N48: 23.03458684 | O48: 26.64615567 | P48: 29.35731145 | Q48: 32.69659309 | R48: 37.89430578 | S48: 45.2842999 | T48: 47.41185378 | U48: 45.81222162 | V48: 42.13125473 | W48: 36.86173827 | X48: 29.77190433 | Y48: 20.57019762 | Z48: 11.47323388 | AA48: 3.62962284
D49: QAL-V | E49: k3 | F49: QAL-Vk3 | G49: 9.033037877 | H49: 11.80331246 | I49: 12.31437126 | J49: 14.3111819 | K49: 13.3874606 | L49: 14.33301228 | M49: 13.08266378 | N49: 13.39698628 | O49: 15.4291324 | P49: 16.96606219 | Q49: 18.86901532 | R49: 21.84942227 | S49: 26.09734212 | T49: 27.34990465 | U49: 26.45680866 | V49: 24.37570255 | W49: 21.37866992 | X49: 17.34331888 | Y49: 12.08321956 | Z49: 6.893584879 | AA49: 2.406074252
F50: 1 | G50: 2 | H50: 3 | I50: 4 | J50: 5 | K50: 6 | L50: 7 | M50: 8 | N50: 9 | O50: 10 | P50: 11 | Q50: 12 | R50: 13 | S50: 14 | T50: 15 | U50: 16 | V50: 17 | W50: 18 | X50: 19 | Y50: 20 | Z50: 21 | AA50: 22
C52: Auswahl: | D52: =Auslegung!$D$12 -> QAL-K | E52: k1 | F52: =CONCATENATE(D52,E52) -> QAL-Kk1 | G52: =VLOOKUP($F52,$F$41:$AA$49,G$50,FALSE) ->  | H52: =VLOOKUP($F52,$F$41:$AA$49,H$50,FALSE) -> 
D53: =Auslegung!$D$12 -> QAL-K | E53: k2 | F53: =CONCATENATE(D53,E53) -> QAL-Kk2 | G53: =VLOOKUP($F53,$F$41:$AA$49,G$50,FALSE) -> 
D54: =Auslegung!$D$12 -> QAL-K | E54: k3 | F54: QAL-Kk3
C56: V°= | D56: =Auslegung!$D$26 -> 860 | G56: =G$52*LOG($D$56)+G$53*LOG($D$57)+G$54*LOG($D$58) ->  | H56: =H$52*LOG($D$56)+H$53*LOG($D$57)+H$54*LOG($D$58) ->  | R56: =R$52*LOG($D$56)+R$53*LOG($D$57)+R$54*LOG($D$58) ->  | S56: =S$52*LOG($D$56)+S$53*LOG($D$57)+S$54*LOG($D$58) ->  | AB56: =10*LOG(10^(0.1*G56)+10^(0.1*H56)+10^(0.1*I56)+10^(0.1*J56)+10^(0.1*K56)+10^(0.1*L56)+10^(0.1*M56)+10^(0.1*N56)+10^(0.1*O56)+10^(0.1*P56)+10^(0.1*Q56)+10^(0.1*R56)+10^(0.1*S56)+10^(0.1*T56)+10^(0.1*U56)+10^(0.1*V56)+10^(0.1*W56)+10^(0.1*X56)+10^(0.1*Y56)+10^(0.1*Z56)+10^(0.1*AA56)) -> 
C57: Dp= | D57: =Auslegung!$D$103 -> 2.906327417
C58: v= | D58: =Grunddaten!$V$33 -> 0.1592592593
N60: 0
G61: Relativspektren | N61: 0
F62: QAL-L | G62: -3.809608645 | H62: -6.154666063 | I62: -6.451024755 | J62: -4.378405574 | K62: -5.635485005 | L62: -13.25482948 | M62: -19.23586654 | N62: 0
F63: QAL-H | G63: -0.9224626713 | H63: -3.911154715 | I63: -5.110705179 | J63: -4.039353987 | K63: -6.820139673 | L63: -14.23073774 | M63: -19.05855844 | N63: 0
F64: QAL-V | G64: -3.398869653 | H64: -5.530021993 | I64: -5.578732425 | J64: -4.655927529 | K64: -7.133211981 | L64: -12.82156683 | M64: -16.62471801
F65: QAL-K | G65: =G62 -> -3.809608645 | H65: =H62 -> -6.154666063 | I65: -6.451024755 | J65: -4.378405574 | K65: -5.635485005 | L65: -13.25482948 | M65: -19.23586654
F66: QAL-R | G66: =AVERAGE(G63:G65) -> -2.710313656 | H66: =AVERAGE(H63:H65) -> -5.198614257 | I66: -5.713487453 | J66: -4.357895696 | K66: -6.52961222 | L66: -13.43571135 | M66: -18.306381
F67: 1 | G67: 2 | H67: 3 | I67: 4 | J67: 5 | K67: 6 | L67: 7 | M67: 8 | N67: Summe
E68: Auswahl: | F68: =Auslegung!$D$12 -> QAL-K | G68: =VLOOKUP($F$68,$F$62:$M$67,G67,FALSE) -> -3.809608645 | H68: =VLOOKUP($F$68,$F$62:$M$67,H67,FALSE) -> -6.154666063 | I68: -6.451024755 | J68: -4.378405574 | K68: -5.635485005 | L68: -13.25482948 | M68: -19.23586654 | N68: =Grunddaten!$AK$33 -> -10.65957528
E69: Oktavband, unbewertet: | G69: =$N$68+G$68 -> -14.46918393 | H69: =$N$68+H$68 -> -16.81424134 | I69: -17.11060004 | J69: -15.03798086 | K69: -16.29506029 | L69: -23.91440476 | M69: -29.89544182
B75: T[s] nach VDI 2081 | F75: Nachhallzeit | G75: Richtungsfaktor | H75: Raumvolumen | I75: äqu. Absorptionsfläche
B76: Raumart | D76: s | F76: t | G76: Q | H76: V | I76: A
B77: Einzelbüro | D77: 0.5 | F77: s | H77: m³ | I77: m²Sabine
B78: Großraumbüro | D78: 0.5 | E78: =Auslegung!$D$44 -> Konzertsaal | F78: =VLOOKUP(E78,[1]Lw!$A$126:$C$149,3,FALSE) -> 1.5 | G78: 4 | H78: =Auslegung!$D$36*Auslegung!$D$38*Auslegung!$D$39 -> 288 | I78: =0.163*H78/F78 -> 31.296
B79: Werkstätten | D79: 1.5
B80: Ruheraum, Pausenraum | D80: 1
B81: Untersuchungsraum Krankenhaus | D81: 2
B82: Rundfunk-, Fernsehstudio | D82: 0.5
B83: Chemielabor | D83: 2
B84: Wasch- und WC-Raum, Umkleide | D84: 2
B85: Schwimmbad | D85: 2
B86: EDV-Raum | D86: 1.5
B87: Konzertsaal | D87: 1.5
B88: Lesesaal | D88: 1
B89: Museum | D89: 1.5
B90: Küche | D90: 1.5
B91: Theater, Kino | D91: 1
B92: Klassen- Seminarraum | D92: 1
B93: Gaststätte | D93: 1
B94: kein Typ | D94: x
B95: Konferenzraum | D95: 1
B96: Hotelzimmer | D96: 0.5
B97: Hörsaal | D97: 1
B98: Bettenzimmer Krankenhaus | D98: 1
B99: Verkaufsraum | D99: 1
B100: Sporthalle | D100: 2

Sheet DR (hidden)
A1: Berechnung des Zugluftrisikos
A2: Achtung: Automatisierte Konstantenauswahl aus den "-CAP" Arbeitsblättern
A3: Annahme: | B3: Turbulenzgrad = | C3: 40 | D3: %
A5: Konstanten Temperaturverhältnis | C5: K051 | D5: =SUM(#REF!,#REF!,#REF!,#REF!,#REF!) -> 
C6: K052 | D6: =SUM(#REF!,#REF!,#REF!,#REF!,#REF!) -> 
A7: Temperaturen | B7: Zuluft | C7: =Auslegung!$D$32 -> 17
B8: Raum | C8: =Auslegung!$D$33 -> 23
A10: 1. Zugluftrisiko im Fußbodenbereich
B11: Lauflänge | C11: =#REF! -> 
B12: Luftgeschwindigkeit, errechnet | C12: =#REF! -> 
B13: Luftgeschwindigkeit, gesetzt | C13: =IF(C12<0.05,0.05,C12) -> 
B14: lok. Temperaturdifferenz | C14: =($C$8-$C$7)*$D$5*(1/C11)^$D$6 -> 
B15: Absolute Temperatur | C15: =C8-C14 -> 
B16: Zugluftrisiko | C16: =IF((34-C15)*((C13-0.05)^0.62)*(0.37*C13*$C$3+3.14)>100,100,IF((34-C15)*((C13-0.05)^0.62)*(0.37*C13*$C$3+3.14)<0,0,(34-C15)*((C13-0.05)^0.62)*(0.37*C13*$C$3+3.14))) -> 
A18: 2. Zugluftrisiko nach Stoßpunkt
B19: Lauflänge | C19: =#REF! -> 
B20: Luftgeschwindigkeit, errechnet | C20: =#REF! -> 
B21: Luftgeschwindigkeit, gesetzt | C21: =IF(C20<0.05,0.05,C20) -> 
B22: lok. Temperaturdifferenz | C22: =($C$8-$C$7)*$D$5*(1/C19)^$D$6 -> 
B23: Absolute Temperatur | C23: =C8-C22 -> 
B24: Zugluftrisiko | C24: =IF((34-C23)*((C21-0.05)^0.62)*(0.37*C21*$C$3+3.14)>100,100,IF((34-C23)*((C21-0.05)^0.62)*(0.37*C21*$C$3+3.14)<0,0,(34-C23)*((C21-0.05)^0.62)*(0.37*C21*$C$3+3.14))) -> 
A26: 3. Zugluftrisiko nach Ablösen an X_kritisch
B27: Lauflänge | C27: =#REF! -> 
B28: Luftgeschwindigkeit, errechnet | C28: =#REF! -> 
B29: Luftgeschwindigkeit, gesetzt | C29: =IF(C28<0.05,0.05,C28) -> 
B30: lok. Temperaturdifferenz | C30: =($C$8-$C$7)*$D$5*(1/C27)^$D$6 -> 
B31: Absolute Temperatur | C31: =C8-C30 -> 
B32: Zugluftrisiko | C32: =IF((34-C31)*((C29-0.05)^0.62)*(0.37*C29*$C$3+3.14)>100,100,IF((34-C31)*((C29-0.05)^0.62)*(0.37*C29*$C$3+3.14)<0,0,(34-C31)*((C29-0.05)^0.62)*(0.37*C29*$C$3+3.14))) -> 

Sheet Berechnung-R (hidden)
A1: Raumdaten | D1: Austrittsgeschwindigkeit | F1: =B16 -> 0.1814673687 | G1: m/s | H1: Nahbereich: | I1: =IF(MIN(O10:O102)-B35<0.5,"<0,5",MIN(O10:O102)-B35) -> 1.3 | J1: m
A2: Länge | B2: 6 | C2: m | D2: Raumtemperatur 1,1m | F2: =B12 -> 23 | G2: °C | H2: Temperatur: | I2: =IF($F$2-AVERAGE(P10:P103)<B11,B11,$F$2-AVERAGE(P10:P103)) -> 19.33803095 | J2: °C in Fußbodennähe
A3: Breite | B3: 12 | C3: m | D3: Temperaturdifferenz | F3: =B12-B11 -> 6 | G3: K
A4: Höhe | B4: 3 | C4: m | D4: UK-Aufenthlatsbereich | F4: 0.1 | G4: m
A5: spez.Kühllast | B5: =Auslegung!$D$97 -> 35 | C5: W/m² | D5: Maximalgeschwindigkeit | F5: =Auslegung!$D$41 -> 0.2 | G5: m/s
D6: Höhenoffset: | F6: 0.06 | G6: m | Q6: Geschwindigkeit | T6: Strahldicke | W6: Temperaturverhältnis
A7: Durchlass | B7: Halbrund | Q7: k1 | R7: 1.466197496 | T7: k1 | U7: 0.0002237264024 | W7: k1 | X7: 17.20984241
A8: Höhe | B8: =Auslegung!$D$18 -> 1500 | C8: mm | D8: Vorgaben | G8: Zwischenergebnisse | J8: Vorgabe | O8: Länge Nahzone | P8: Lokale Temperatur | Q8: k2 | R8: 0.4765769855 | T8: k2 | U8: 8.287057573 | W8: k2 | X8: -0.01213840247
A9: Durchmesser | B9: =Auslegung!$D$19 -> 1000 | C9: mm | D9: vaus | E9: X | F9: DT | G9: vrech(5cm) | H9: Delta | I9: v(Delta) | J9: vmax | K9: h | L9: m | M9: vBoden | N9: v an h | O9: über Geradengleichung | Q9: k3 | R9: -1.554837225 | T9: k3 | U9: 4.471361003e-08 | W9: k3 | X9: -18.82512599
A10: Volumenstrom | B10: =Auslegung!$D$26 -> 860 | C10: m³/h | D10: =$F$1 -> 0.1814673687 | E10: 0.02 | F10: =$F$3 -> 6 | G10: =($R$7*D10*(1/E10)^$R$8+$R$9*F10^$R$10+$R$11)*$B$31 -> 2.03686945 | H10: =($U$7*D10*E10^$U$8+$U$9*F10^$U$10+$U$11) -> 0.1655850782 | I10: =G10/2 -> 1.018434725 | J10: =$F$5 -> 0.2 | K10: =$F$4 -> 0.1 | L10: =I10/(H10-0.05) -> 8.811126321 | M10: =G10+0.05*L10 -> 2.477425766 | N10: =M10-(K10+$F$6)*L10 -> 1.067645555 | O10: =IF(AND(N10<J10,N9>J9),E10,"") ->  | P10: =IF(O10<>"",F10*($X$7*E10^$X$8+$X$9+$X$10*K10^$X$11)*$B$32,"") ->  | Q10: k4 | R10: -0.05066389015 | T10: k4 | U10: 0 | W10: k4 | X10: 2.155479296
A11: Zulufttemperatur | B11: =Auslegung!$D$32 -> 17 | C11: °C | D11: 0.1814673687 | E11: 0.03 | F11: 6 | G11: 1.693171945 | H11: =($U$7*D11*E11^$U$8+$U$9*F11^$U$10+$U$11) -> 0.1655850782 | I11: 0.8465859726 | J11: 0.2 | K11: =$F$4 -> 0.1 | L11: =I11/(H11-0.05) -> 7.324353503 | M11: =G11+0.05*L11 -> 2.05938962 | N11: =M11-(K11+$F$6)*L11 -> 0.88749306 | Q11: k5 | R11: 1.49085861 | T11: k5 | U11: 0.1655850335 | W11: k5 | X11: -0.02261109741
A12: Raumtemperatur in 1,1m Höhe | B12: =Auslegung!$D$33 -> 23 | C12: °C | D12: 0.1814673687 | E12: 0.04 | F12: 6 | G12: 1.486601436 | H12: 0.1655850782 | I12: 0.7433007178 | J12: 0.2 | K12: 0.1 | L12: 6.430767095 | M12: 1.80813979 | N12: 0.7792170551
D13: 0.1814673687 | E13: 0.05 | F13: 6 | G13: 1.344780484 | H13: 0.1655850782 | I13: 0.6723902419 | J13: 0.2 | K13: 0.1 | L13: 5.817275484 | M13: 1.635644258 | N13: 0.7048801806
A14: Zwischenergebnisse | D14: 0.1814673687 | E14: 0.06 | F14: 6 | G14: 1.239592644 | H14: 0.1655850782 | I14: 0.6197963218 | J14: 0.2 | K14: 0.1 | L14: 5.362252043 | M14: 1.507705246 | N14: 0.649744919 | Q14: Höhe-Geschw. | T14: Höhe-Temp.
A15: Mantelfläche | B15: =Grunddaten!$U$33 -> 1.5 | C15: m² | D15: 0.1814673687 | E15: 0.07 | F15: 6 | G15: 1.157517174 | H15: 0.1655850782 | I15: 0.5787585868 | J15: 0.2 | K15: 0.1 | L15: 5.007208505 | M15: 1.407877599 | N15: 0.606724238 | Q15: K1 | R15: 8.947221249e-08 | T15: K1 | U15: 2.71936044e-07
A16: Austrittsgeschwindigkeit | B16: =B10/B15/3600*B31 -> 0.1814673687 | C16: m/s | D16: 0.1814673687 | E16: 0.08 | F16: 6 | G16: 1.091134388 | H16: 0.1655850782 | I16: 0.545567194 | J16: 0.2 | K16: 0.1 | L16: 4.720048663 | M16: 1.327136821 | N16: 0.5719290351 | Q16: K2 | R16: -3.931075921e-05 | T16: K2 | U16: -0.0001544214881
A17: Kühlleistung / Durchlass | B17: =1.2*1.006*(B12-B11)*B10/3.6 -> 1730.32 | C17: W | D17: 0.1814673687 | E17: 0.09 | F17: 6 | G17: 1.03598627 | H17: 0.1655850782 | I17: 0.5179931348 | J17: 0.2 | K17: 0.1 | L17: 4.481487945 | M17: 1.260060667 | N17: 0.5430225955 | Q17: K3 | R17: 0.9970999293 | T17: K3 | U17: 0.9970993122
A18: spez. Kühlleistung / Durchlass | B18: =B17/(B2*B3) -> 24.03222222 | C18: W/m² | D18: =$F$1 -> 0.1814673687 | E18: 0.1 | F18: =$F$3 -> 6 | G18: 0.9892103955 | H18: 0.1655850782 | I18: =G18/2 -> 0.4946051977 | J18: =$F$5 -> 0.2 | K18: 0.1 | L18: 4.279144032 | M18: 1.203167597 | N18: 0.5185045519
A19: Kühllast Raum | B19: =B2*B3*B5 -> 2520 | C19: W | D19: =$F$1 -> 0.1814673687 | E19: 0.2 | F19: =$F$3 -> 6 | G19: 0.7336690061 | H19: 0.1655850783 | I19: =G19/2 -> 0.366834503 | J19: =$F$5 -> 0.2 | K19: 0.1 | L19: 3.173718515 | M19: 0.8923549318 | N19: 0.3845599694
A20: Leistungsasymmetrie | B20: =B19-B17 -> 789.68 | C20: W | D20: 0.1814673687 | E20: 0.3 | F20: 6 | G20: 0.6189595042 | H20: 0.1655850801 | I20: 0.3094797521 | J20: 0.2 | K20: 0.1 | L20: 2.677506057 | M20: 0.752834807 | N20: 0.3244338379
D21: 0.1814673687 | E21: 0.4 | F21: 6 | G21: 0.5500163203 | H21: 0.1655850987 | I21: 0.2750081601 | J21: 0.2 | K21: 0.1 | L21: =I21/(H21-0.05) -> 2.379270021 | M21: 0.6689798213 | N21: 0.288296618 | P21: =IF(O21<>"",F21*($X$7*E21^$X$8+$X$9+$X$10*K21^$X$11)*$B$32,"") -> 
A22: Temperaturberechnung | D22: 0.1814673687 | E22: 0.5 | F22: 6 | G22: 0.502683388 | H22: 0.1655852082 | I22: 0.251341694 | J22: 0.2 | K22: 0.1 | L22: 2.174514351 | M22: 0.6114091055 | N22: 0.2634868094 | P22: =IF(O22<>"",F22*($X$7*E22^$X$8+$X$9+$X$10*K22^$X$11)*$B$32,"") -> 
A23: Volumenstrom Abluft | B23: =B10 -> 860 | C23: m³/h | D23: 0.1814673687 | E23: 0.6 | F23: 6 | G23: 0.4675768057 | H23: 0.1655856671 | I23: 0.2337884028 | J23: 0.2 | K23: 0.1 | L23: 2.022641809 | M23: 0.5687088961 | N23: 0.2450862067 | O23: =IF(AND(N23<J23,N22>J22),E23,"") ->  | P23: =IF(O23<>"",F23*($X$7*E23^$X$8+$X$9+$X$10*K23^$X$11)*$B$32,"") -> 
A24: Temperatur Abluft | B24: =B12+(B20/(1.2*1.006*B23/3.6)) -> 25.73826807 | C24: °C | D24: 0.1814673687 | E24: 0.7 | F24: 6 | G24: 0.4401840078 | H24: 0.1655871909 | I24: 0.2200920039 | J24: 0.2 | K24: 0.1 | L24: 1.904121055 | M24: 0.5353900605 | N24: 0.2307306918
A25: Temperaturgradient A-Bereich | B25: =ROUND((I2-B11)/1.1,1) -> 2.1 | C25: K/m | D25: 0.1814673687 | E25: 0.8 | F25: 6 | G25: 0.4180286643 | H25: 0.165591467 | I25: 0.2090143322 | J25: 0.2 | K25: 0.1 | L25: 1.808215932 | M25: 0.5084394609 | N25: 0.2191249119
A26: Temperaturgradient oberhalb | B26: =ROUND((B4-1.1)/(B24-B12),1) -> 0.7 | C26: K/m | D26: 0.1814673687 | E26: 0.9 | F26: 6 | G26: 0.399622906 | H26: 0.1656020341 | I26: 0.199811453 | J26: 0.2 | K26: 0.1 | L26: 1.728442363 | M26: 0.4860450242 | N26: 0.2094942461 | P26: =IF(O26<>"",F26*($X$7*E26^$X$8+$X$9+$X$10*K26^$X$11)*$B$32,"") -> 
A27: Differenz | D27: 0.1814673687 | E27: 1 | F27: 6 | G27: 0.3840113955 | H27: 0.1656256773 | I27: 0.1920056978 | J27: 0.2 | K27: 0.1 | L27: 1.660580092 | M27: 0.4670404001 | N27: 0.2013475854
A28: Vorgeschlagener Einsatzfall | B28: =IF(B25>B26,"Wärmequellen unten",IF(B25<B26,"Wärmequellen oben","Homogene Lastverteilung")) -> Wärmequellen unten | D28: 0.1814673687 | E28: 1.1 | F28: 6 | G28: 0.3705487269 | H28: 0.1656745198 | I28: 0.1852743635 | J28: 0.2 | K28: 0.1 | L28: 1.601686904 | M28: 0.4506330721 | N28: 0.1943631675 | O28: 1.1 | P28: 5.251671357
D29: 0.1814673687 | E29: 1.2 | F29: 6 | G29: 0.3587809695 | H29: 0.1657690263 | I29: 0.1793904847 | J29: 0.2 | K29: 0.1 | L29: 1.549555096 | M29: 0.4362587243 | N29: 0.1883299089
A30: Durchlasskorrekturen | D30: 0.1814673687 | E30: 1.3 | F30: 6 | G30: 0.3483782553 | H30: 0.1659421627 | I30: 0.1741891276 | J30: 0.2 | K30: 0.1 | L30: 1.502379494 | M30: 0.42349723 | N30: 0.183116511
A31: Höhenkorrektur Geschwindigkeit | B31: =$R$15*B8^2+$R$16*B8+$R$17 -> 1.139446269 | D31: 0.1814673687 | E31: 1.4 | F31: 6 | G31: 0.339094292 | H31: 0.1662449921 | I31: 0.169547146 | J31: 0.2 | K31: 0.1 | L31: 1.458532905 | M31: 0.4120209373 | N31: 0.1786556724
A32: Höhenkorrektur Temperaturdiff. | B32: =$U$15*B8^2+$U$16*B8+$U$17 -> 1.377323179 | D32: 0.1814673687 | E32: 1.5 | F32: 6 | G32: 0.3307409442 | H32: 0.1667540235 | I32: 0.1653704721 | J32: 0.2 | K32: 0.1 | L32: 1.416400627 | M32: 0.4015609755 | N32: 0.1749368752
D33: 0.1814673687 | E33: 1.6 | F33: 6 | G33: 0.3231716724 | H33: 0.1675806614 | I33: 0.1615858362 | J33: 0.2 | K33: 0.1 | L33: 1.374255208 | M33: 0.3918844328 | N33: 0.1720035996
A34: Nahzonenkorrekturen | D34: 0.1814673687 | E34: 1.7 | F34: 6 | G34: 0.3162703978 | H34: 0.1688831436 | I34: 0.1581351989 | J34: 0.2 | K34: 0.1 | L34: 1.33017343 | M34: 0.3827790693 | N34: 0.1699513205
A35: Durchmesserdifferenz | B35: =(800-B36)/1000 -> -0.2 | D35: 0.1814673687 | E35: 1.8 | F35: 6 | G35: 0.3099438077 | H35: 0.1708813923 | I35: 0.1549719038 | J35: 0.2 | K35: 0.1 | L35: 1.282016206 | M35: 0.3740446179 | N35: 0.1689220251
A36: Durchmesserkorrektur V-Variante | B36: =IF(Auslegung!$D$12="QAL-V",Auslegung!D19,Auslegung!D19) -> 1000 | D36: 0.1814673687 | E36: 1.9 | F36: 6 | G36: 0.3041159126 | H36: 0.1738752384 | I36: 0.1520579563 | J36: 0.2 | K36: 0.1 | L36: 1.22750889 | M36: 0.3654913571 | N36: 0.1690899348
D37: 0.1814673687 | E37: 2 | F37: 6 | G37: 0.2987241151 | H37: 0.1782665216 | I37: 0.1493620575 | J37: 0.2 | K37: 0.1 | L37: 1.164466423 | M37: 0.3569474362 | N37: 0.1706328086
D38: 0.1814673687 | E38: 2.1 | F38: 6 | G38: 0.2937163164 | H38: 0.1845856044 | I38: 0.1468581582 | J38: 0.2 | K38: 0.1 | L38: 1.091187715 | M38: 0.3482757022 | N38: 0.1736856677
D39: 0.1814673687 | E39: 2.2 | F39: 6 | G39: 0.2890487539 | H39: 0.1935228813 | I39: 0.1445243769 | J39: 0.2 | K39: 0.1 | L39: 1.006977951 | M39: 0.3393976514 | N39: 0.1782811792
D40: 0.1814673687 | E40: 2.3 | F40: 6 | G40: 0.2846843586 | H40: 0.2059659029 | I40: 0.1423421793 | J40: 0.2 | K40: 0.1 | L40: 0.9126493462 | M40: 0.3303168259 | N40: 0.1842929305
D41: 0.1814673687 | E41: 2.4 | F41: 6 | G41: 0.2805914927 | H41: 0.2230427774 | I41: 0.1402957464 | J41: 0.2 | K41: 0.1 | L41: 0.8107575969 | M41: 0.3211293726 | N41: 0.1914081571
D42: 0.1814673687 | E42: 2.5 | F42: 6 | G42: 0.2767429659 | H42: 0.2461725523 | I42: 0.138371483 | J42: 0.2 | K42: 0.1 | L42: 0.7053559804 | M42: 0.312010765 | N42: 0.1991538081
D43: 0.1814673687 | E43: 2.6 | F43: 6 | G43: 0.273115262 | H43: 0.2771233233 | I43: 0.136557631 | J43: 0.2 | K43: 0.1 | L43: 0.6012488238 | M43: 0.3031777031 | N43: 0.2069778913
D44: 0.1814673687 | E44: 2.7 | F44: 6 | G44: 0.269687923 | H44: 0.3180788582 | I44: 0.1348439615 | J44: 0.2 | K44: 0.1 | L44: 0.5030011035 | M44: 0.2948379781 | N44: 0.2143578016
D45: 0.1814673687 | E45: 2.8 | F45: 6 | G45: 0.266443056 | H45: 0.3717145694 | I45: 0.133221528 | J45: 0.2 | K45: 0.1 | L45: 0.4140985229 | M45: 0.2871479821 | N45: 0.2208922184
D46: 0.1814673687 | E46: 2.9 | F46: 6 | G46: 0.263364933 | H46: 0.4412837104 | I46: 0.1316824665 | J46: 0.2 | K46: 0.1 | L46: 0.336539608 | M46: 0.2801919134 | N46: 0.2263455761
D47: 0.1814673687 | E47: 3 | F47: 6 | G47: 0.2604396654 | H47: 0.5307147177 | I47: 0.1302198327 | J47: 0.2 | K47: 0.1 | L47: 0.2708879672 | M47: 0.2739840638 | N47: 0.230641989
D48: 0.1814673687 | E48: 3.1 | F48: 6 | G48: 0.2576549355 | H48: 0.6447206637 | I48: 0.1288274677 | J48: 0.2 | K48: 0.1 | L48: 0.216618449 | M48: 0.2684858579 | N48: 0.2338269061
D49: 0.1814673687 | E49: 3.2 | F49: 6 | G49: 0.2549997753 | H49: 0.7889218314 | I49: 0.1274998876 | J49: 0.2 | K49: 0.1 | L49: 0.172548546 | M49: 0.2636272026 | N49: 0.2360194352
A50: Diagrammanzeige | D50: 0.1814673687 | E50: 3.3 | F50: 6 | G50: 0.2524643816 | H50: 0.9699824692 | I50: 0.1262321908 | J50: 0.2 | K50: 0.1 | L50: 0.1372115176 | M50: 0.2593249575 | N50: 0.2373711147
A51: Temperaturprofil | D51: 0.1814673687 | E51: 3.4 | F51: 6 | G51: 0.2500399618 | H51: 1.195762828 | I51: 0.1250199809 | J51: 0.2 | K51: 0.1 | L51: 0.109115061 | M51: 0.2554957149 | N51: 0.2380373051
A52: h | B52: T | D52: 0.1814673687 | E52: 3.5 | F52: 6 | G52: 0.2477186032 | H52: 1.47548763 | I52: 0.1238593016 | J52: 0.2 | K52: 0.1 | L52: 0.08688907498 | M52: 0.252063057 | N52: 0.238160805
A53: 0 | B53: =B11 -> 17 | D53: 0.1814673687 | E53: 3.6 | F53: 6 | G53: =($R$7*D53*(1/E53)^$R$8+$R$9*F53^$R$10+$R$11)*$B$31 -> 0.245493163 | H53: =($U$7*D53*E53^$U$8+$U$9*F53^$U$10+$U$11) -> 1.819932173 | I53: =G53/2 -> 0.1227465815 | J53: 0.2 | K53: 0.1 | L53: =I53/(H53-0.05) -> 0.06935100871 | M53: =G53+0.05*L53 -> 0.2489607135 | N53: =M53-(K53+$F$6)*L53 -> 0.2378645521 | O53: =IF(AND(N53<J53,N52>J52),E53,"") ->  | P53: =IF(O53<>"",F53*($X$7*E53^$X$8+$X$9+$X$10*K53^$X$11)*$B$32,"") -> 
A54: 0.1 | B54: =I2 -> 19.33803095 | D54: 0.1814673687 | E54: 3.7 | F54: 6 | G54: 0.2433571746 | H54: 2.241627299 | I54: 0.1216785873 | J54: 0.2 | K54: 0.1 | L54: 0.05551974432 | M54: 0.2461331618 | N54: 0.2372500027
A55: 1.1 | B55: =B12 -> 23 | D55: 0.1814673687 | E55: 3.8 | F55: 6 | G55: 0.2413047669 | H55: 2.755084547 | I55: 0.1206523834 | J55: 0.2 | K55: 0.1 | L55: 0.04460207485 | M55: 0.2435348706 | N55: 0.2363985387
A56: =B4 -> 3 | B56: =B24 -> 25.73826807 | D56: 0.1814673687 | E56: 3.9 | F56: 6 | G56: 0.239330596 | H56: 3.3770428 | I56: 0.119665298 | J56: 0.2 | K56: 0.1 | L56: 0.03596746577 | M56: 0.2411289693 | N56: 0.2353741748
D57: 0.1814673687 | E57: 4 | F57: 6 | G57: 0.2374297856 | H57: 4.126737844 | I57: 0.1187148928 | J57: 0.2 | K57: 0.1 | L57: 0.02912007034 | M57: 0.2388857891 | N57: 0.2342265778
A58: 1.8 | B58: 15 | D58: 0.1814673687 | E58: 4.1 | F58: 6 | G58: 0.2355978754 | H58: 5.02619626 | I58: 0.1177989377 | J58: 0.2 | K58: 0.1 | L58: 0.02367248629 | M58: 0.2367814997 | N58: 0.2329939019
A59: 1.8 | B59: 31 | D59: 0.1814673687 | E59: 4.2 | F59: 6 | G59: 0.2338307769 | H59: 6.100555147 | I59: 0.1169153885 | J59: 0.2 | K59: 0.1 | L59: 0.01932308451 | M59: 0.2347969311 | N59: 0.2317052376
D60: 0.1814673687 | E60: 4.3 | F60: 6 | G60: 0.2321247341 | H60: 7.378409214 | I60: 0.116062367 | J60: 0.2 | K60: 0.1 | L60: 0.01583732071 | M60: 0.2329166001 | N60: 0.2303826288
D61: 0.1814673687 | E61: 4.4 | F61: 6 | G61: 0.2304762894 | H61: 8.892186827 | I61: 0.1152381447 | J61: 0.2 | K61: 0.1 | L61: 0.01303276519 | M61: 0.2311279277 | N61: 0.2290426853
D62: 0.1814673687 | E62: 4.5 | F62: 6 | G62: 0.2288822543 | H62: 10.67855666 | I62: 0.1144411272 | J62: 0.2 | K62: 0.1 | L62: 0.01076732532 | M62: 0.2294206206 | N62: 0.2276978485
D63: 0.1814673687 | E63: 4.6 | F63: 6 | G63: 0.2273396824 | H63: 12.77886661 | I63: 0.1136698412 | J63: 0.2 | K63: 0.1 | L63: 0.008930083465 | M63: 0.2277861866 | N63: 0.2263573733
D64: 0.1814673687 | E64: 4.7 | F64: 6 | G64: 0.2258458466 | H64: 15.23961679 | I64: 0.1129229233 | J64: 0.2 | K64: 0.1 | L64: 0.007434218049 | M64: 0.2262175575 | N64: 0.2250280826
D65: 0.1814673687 | E65: 4.8 | F65: 6 | G65: 0.2243982184 | H65: 18.11296831 | I65: 0.1121991092 | J65: 0.2 | K65: 0.1 | L65: 0.006211554339 | M65: 0.2247087961 | N65: 0.2237149474
D66: 0.1814673687 | E66: 4.9 | F66: 6 | G66: 0.2229944495 | H66: 21.45728972 | I66: 0.1114972248 | J66: 0.2 | K66: 0.1 | L66: 0.005208376502 | M66: 0.2232548684 | N66: 0.2224215281
D67: 0.1814673687 | E67: 5 | F67: 6 | G67: 0.2216323561 | H67: 25.33774307 | I67: 0.1108161781 | J67: 0.2 | K67: 0.1 | L67: 0.00438220911 | M67: 0.2218514666 | N67: 0.2211503131
D68: 0.1814673687 | E68: 5.1 | F68: 6 | G68: 0.2203099038 | H68: 29.82691144 | I68: 0.1101549519 | J68: 0.2 | K68: 0.1 | L68: 0.003699341086 | M68: 0.2204948709 | N68: 0.2199029763
D69: 0.1814673687 | E69: 5.2 | F69: 6 | G69: 0.219025195 | H69: 35.00547004 | I69: 0.1095125975 | J69: 0.2 | K69: 0.1 | L69: 0.003132917319 | M69: 0.2191818409 | N69: 0.2186805741
D70: 0.1814673687 | E70: 5.3 | F70: 6 | G70: 0.2177764571 | H70: 40.96290286 | I70: 0.1088882286 | J70: 0.2 | K70: 0.1 | L70: 0.002661464256 | M70: 0.2179095303 | N70: 0.217483696
D71: 0.1814673687 | E71: 5.4 | F71: 6 | G71: 0.2165620323 | H71: 47.79826702 | I71: 0.1082810162 | J71: 0.2 | K71: 0.1 | L71: 0.002267747563 | M71: 0.2166754197 | N71: 0.2163125801
D72: 0.1814673687 | E72: 5.5 | F72: 6 | G72: 0.2153803681 | H72: 55.62100701 | I72: 0.1076901841 | J72: 0.2 | K72: 0.1 | L72: 0.001937884337 | M72: 0.2154772623 | N72: 0.2151672008
D73: 0.1814673687 | E73: 5.6 | F73: 6 | G73: 0.2142300088 | H73: 64.55182098 | I73: 0.1071150044 | J73: 0.2 | K73: 0.1 | L73: 0.001660650858 | M73: 0.2143130413 | N73: 0.2140473372
D74: 0.1814673687 | E74: 5.7 | F74: 6 | G74: 0.2131095878 | H74: 74.72358139 | I74: 0.1065547939 | J74: 0.2 | K74: 0.1 | L74: 0.001426940987 | M74: 0.2131809348 | N74: 0.2129526243
D75: 0.1814673687 | E75: 5.8 | F75: 6 | G75: 0.212017821 | H75: 86.28231234 | I75: 0.1060089105 | J75: 0.2 | K75: =$F$4 -> 0.1 | L75: 0.001229340924 | M75: 0.212079288 | N75: 0.2118825935
D76: 0.1814673687 | E76: 5.9 | F76: 6 | G76: 0.2109535001 | H76: 99.38822597 | I76: 0.1054767501 | J76: 0.2 | K76: 0.1 | L76: 0.001061794179 | M76: 0.2110065898 | N76: 0.2108367028
D77: 0.1814673687 | E77: 6 | F77: 6 | G77: 0.2099154873 | H77: 114.2168204 | I77: 0.1049577437 | J77: 0.2 | K77: 0.1 | L77: 0.0009193366627 | M77: 0.2099614542 | N77: 0.2098143603
D78: 0.1814673687 | E78: 6.1 | F78: 6 | G78: 0.2089027099 | H78: 130.9600416 | I78: 0.104451355 | J78: 0.2 | K78: 0.1 | L78: 0.0007978865001 | M78: 0.2089426042 | N78: 0.2088149424
D79: 0.1814673687 | E79: 6.2 | F79: 6 | G79: 0.2079141555 | H79: 149.827512 | I79: 0.1039570777 | J79: 0.2 | K79: 0.1 | L79: 0.0006940766765 | M79: 0.2079488593 | N79: 0.207837807
D80: 0.1814673687 | E80: 6.3 | F80: 6 | G80: 0.2069488678 | H80: 171.0478277 | I80: 0.1034744339 | J80: 0.2 | K80: 0.1 | L80: 0.0006051213357 | M80: 0.2069791239 | N80: 0.2068823045
D81: 0.1814673687 | E81: 6.4 | F81: 6 | G81: 0.2060059428 | H81: 194.8699285 | I81: 0.1030029714 | J81: 0.2 | K81: 0.1 | L81: 0.0005287085987 | M81: 0.2060323783 | N81: 0.2059477849
D82: 0.1814673687 | E82: 6.5 | F82: 6 | G82: 0.205084525 | H82: 221.5645416 | I82: 0.1025422625 | J82: 0.2 | K82: 0.1 | L82: 0.0004629143613 | M82: 0.2051076708 | N82: 0.2050336045
D83: =$F$1 -> 0.1814673687 | E83: 6.6 | F83: =$F$3 -> 6 | G83: 0.2041838042 | H83: 251.4257027 | I83: 0.1020919021 | J83: =$F$5 -> 0.2 | K83: 0.1 | L83: 0.0004061327367 | M83: 0.2042041108 | N83: 0.2041391295
D84: 0.1814673687 | E84: 6.7 | F84: 6 | G84: 0.2033030121 | H84: 284.7723579 | I84: 0.101651506 | J84: 0.2 | K84: 0.1 | L84: 0.0003570197535 | M84: 0.2033208631 | N84: 0.2032637399
D85: 0.1814673687 | E85: 6.8 | F85: 6 | G85: 0.2024414202 | H85: 321.9500481 | I85: 0.1012207101 | J85: 0.2 | K85: 0.1 | L85: 0.000314447639 | M85: 0.2024571426 | N85: 0.202406831
D86: 0.1814673687 | E86: 6.9 | F86: 6 | G86: 0.2015983368 | H86: 363.3326794 | I86: 0.1007991684 | J86: 0.2 | K86: 0.1 | L86: 0.0002774675868 | M86: 0.2016122101 | N86: 0.2015678153
D87: 0.1814673687 | E87: 7 | F87: 6 | G87: 0.2007731044 | H87: 409.3243827 | I87: 0.1003865522 | J87: 0.2 | K87: 0.1 | L87: 0.0002452793442 | M87: 0.2007853684 | N87: 0.2007461237
D88: 0.1814673687 | E88: 7.1 | F88: 6 | G88: 0.1999650982 | H88: 460.3614654 | I88: 0.09998254908 | J88: 0.2 | K88: 0.1 | L88: 0.0002172062974 | M88: 0.1999759585 | N88: 0.1999412055 | O88: 7.1 | P88: 2.072266734
D89: 0.1814673687 | E89: 7.2 | F89: 6 | G89: 0.1991737233 | H89: 516.9144584 | I89: 0.09958686166 | J89: 0.2 | K89: 0.1 | L89: 0.0001926750041 | M89: 0.1991833571 | N89: 0.1991525291
D90: 0.1814673687 | E90: 7.3 | F90: 6 | G90: 0.1983984136 | H90: 579.4902607 | I90: 0.09919920681 | J90: 0.2 | K90: 0.1 | L90: 0.0001711983332 | M90: 0.1984069735 | N90: 0.1983795818
D91: 0.1814673687 | E91: 7.4 | F91: 6 | G91: 0.1976386295 | H91: 648.6343871 | I91: 0.09881931473 | J91: 0.2 | K91: 0.1 | L91: 0.000152361538 | M91: 0.1976462475 | N91: 0.1976218697
D92: 0.1814673687 | E92: 7.5 | F92: 6 | G92: 0.1968938564 | H92: 724.9333194 | I92: 0.09844692819 | J92: 0.2 | K92: 0.1 | L92: 0.0001358107237 | M92: 0.1969006469 | N92: 0.1968789172
D93: 0.1814673687 | E93: 7.6 | F93: 6 | G93: 0.1961636035 | H93: 809.0169665 | I93: 0.09808180175 | J93: 0.2 | K93: 0.1 | L93: 0.0001212432717 | M93: 0.1961696657 | N93: 0.1961502667
D94: 0.1814673687 | E94: 7.7 | F94: 6 | G94: 0.1954474022 | H94: 901.5612367 | I94: 0.0977237011 | J94: 0.2 | K94: 0.1 | L94: 0.0001083998703 | M94: 0.1954528222 | N94: 0.1954354782
D95: 0.1814673687 | E95: 7.8 | F95: 6 | G95: 0.1947448048 | H95: 1003.290724 | I95: 0.09737240242 | J95: 0.2 | K95: 0.1 | L95: 9.705786464e-05 | M95: 0.1947496577 | N95: 0.1947341285
D96: 0.1814673687 | E96: 7.9 | F96: 6 | G96: 0.1940553835 | H96: 1114.981515 | I96: 0.09702769174 | J96: 0.2 | K96: 0.1 | L96: 8.702569658e-05 | M96: 0.1940597348 | N96: 0.1940458107
D97: 0.1814673687 | E97: 8 | F97: 6 | G97: 0.1933787289 | H97: 1237.464115 | I97: 0.09668936445 | J97: 0.2 | K97: 0.1 | L97: 7.813824269e-05 | M97: 0.1933826358 | N97: 0.1933701337
D98: 0.1814673687 | E98: 8.1 | F98: 6 | G98: 0.1927144495 | H98: 1371.626505 | I98: 0.09635722475 | J98: 0.2 | K98: 0.1 | L98: 7.02528983e-05 | M98: 0.1927179621 | N98: 0.1927067217
D99: 0.1814673687 | E99: 8.2 | F99: 6 | G99: 0.1920621703 | H99: 1518.417323 | I99: 0.09603108514 | J99: 0.2 | K99: 0.1 | L99: 6.324628018e-05 | M99: 0.1920653326 | N99: 0.1920552132
D100: 0.1814673687 | E100: 8.3 | F100: 6 | G100: 0.1914215321 | H100: 1678.849182 | I100: 0.09571076603 | J100: 0.2 | K100: 0.1 | L100: 5.701144427e-05 | M100: 0.1914243826 | N100: 0.1914152608
D101: 0.1814673687 | E101: 8.4 | F101: 6 | G101: 0.1907921905 | H101: 1854.002127 | I101: 0.09539609527 | J101: 0.2 | K101: 0.1 | L101: 5.145553324e-05 | M101: 0.1907947633 | N101: 0.1907865304
D102: 0.1814673687 | E102: 8.5 | F102: 6 | G102: 0.1901738155 | H102: 2045.027226 | I102: 0.09508690777 | J102: 0.2 | K102: 0.1 | L102: 4.649778324e-05 | M102: 0.1901761404 | N102: 0.1901687008
D103: 0.1814673687 | E103: 8.6 | F103: 6 | G103: 0.1895660903 | H103: 2253.150317 | I103: 0.09478304516 | J103: 0.2 | K103: 0.1 | L103: 4.20678318e-05 | M103: 0.1895681937 | N103: 0.1895614629 | O103: =IF(SUM(O10:O52)=0,8.6,"") ->  | P103: =IF(O103<>"",F53*($X$7*E53^$X$8+$X$9+$X$10*K53^$X$11)*$B$32,"") -> 

Sheet Berechnung-L (hidden)
A1: Raumdaten | D1: Austrittsgeschwindigkeit | F1: =B16 -> 0.1633206318 | G1: m/s | H1: Nahbereich: | I1: =ROUND($M$56,1) -> 2.2 | J1: m
A2: Länge | B2: 6 | C2: m | D2: Raumtemperatur 1,1m | F2: =B12 -> 23 | G2: °C | H2: Temperatur: | I2: =IF($F$2-AVERAGE(P10:P53)<B11,B11,$F$2-AVERAGE(P10:P53)) -> 18.77547196 | J2: °C in Fußbodennähe
A3: Breite | B3: 12 | C3: m | D3: Temperaturdifferenz | F3: =B12-B11 -> 6 | G3: K
A4: Höhe | B4: 3 | C4: m | D4: UK-Aufenthlatsbereich | F4: 0.1 | G4: m
A5: spez.Kühllast | B5: =Auslegung!$D$97 -> 35 | C5: W/m² | D5: Maximalgeschwindigkeit | F5: =Auslegung!$D$41 -> 0.2 | G5: m/s
D6: Höhenoffset: | F6: 0.09 | G6: m | Q6: Geschwindigkeit | T6: Strahldicke | W6: Temperaturverhältnis
A7: Durchlass | B7: Linear | Q7: k1 | R7: 2.222278645 | T7: k1 | U7: 1.251433555 | W7: k1 | X7: 17.20984241
A8: Höhe | B8: =Auslegung!$D$18/1000 -> 1.5 | C8: m | D8: Vorgaben | G8: Zwischenergebnisse | J8: Vorgabe | O8: Länge Nahzone | P8: Lokale Temperatur | Q8: k2 | R8: 0.7433077659 | T8: k2 | U8: -1.68558953 | W8: k2 | X8: -0.01213840247
A9: Durchmesser | B9: =Auslegung!$D$19/1000 -> 1 | C9: m | D9: vaus | E9: X | F9: DT | G9: vrech(5cm) | H9: Delta | I9: v(Delta) | J9: vmax | K9: h | L9: m | M9: vBoden | N9: v an h | O9: über Geradengleichung | Q9: k3 | R9: -17.4262976 | T9: k3 | U9: -0.01293795757 | W9: k3 | X9: -18.82512599
A10: Volumenstrom | B10: =Auslegung!$D$26 -> 860 | C10: m³/h | D10: =$F$1 -> 0.1633206318 | E10: 0.5 | F10: =$F$3 -> 6 | G10: =($R$7*D10*(1/E10)^$R$8+$R$9*F10^$R$10+$R$12*$B$8+$R$11)*$B$31 -> 0.7707744746 | H10: =($U$7*D10*E10^$U$8+$U$9*F10^$U$10+$U$11) -> 0.7946957144 | I10: =G10/2 -> 0.3853872373 | J10: =$F$5 -> 0.2 | K10: =$F$4 -> 0.1 | L10: =I10/(H10-0.05) -> 0.5175096752 | M10: =G10+0.05*L10 -> 0.7966499583 | N10: =M10-(K10+$F$6)*L10 -> 0.69832312 | O10: =IF(AND(N10<J10,N9>J9),E10,"") ->  | P10: =IF(O10<>"",F10*($X$7*E10^$X$8+$X$9+$X$10*K10^$X$11)*$B$32,"") ->  | Q10: k4 | R10: 0.004564184325 | T10: k4 | U10: 0 | W10: k4 | X10: 2.155479296
A11: Zulufttemperatur | B11: =Auslegung!$D$32 -> 17 | C11: °C | D11: 0.1633206318 | E11: 0.6 | F11: 6 | G11: =($R$7*D11*(1/E11)^$R$8+$R$9*F11^$R$10+$R$12*$B$8+$R$11)*$B$31 -> 0.691807623 | H11: =($U$7*D11*E11^$U$8+$U$9*F11^$U$10+$U$11) -> 0.6207451425 | I11: 0.3459038115 | J11: 0.2 | K11: =$F$4 -> 0.1 | L11: =I11/(H11-0.05) -> 0.6060565141 | M11: =G11+0.05*L11 -> 0.7221104487 | N11: =M11-(K11+$F$6)*L11 -> 0.606959711 | Q11: k5 | R11: 17.48107854 | T11: k5 | U11: 0.1501849946 | W11: k5 | X11: -0.02261109741
A12: Raumtemperatur in 1,1m Höhe | B12: =Auslegung!$D$33 -> 23 | C12: °C | D12: 0.1633206318 | E12: 0.7 | F12: 6 | G12: 0.6329031259 | H12: 0.5101106204 | I12: 0.3164515629 | J12: 0.2 | K12: 0.1 | L12: 0.6877727853 | M12: 0.6672917652 | N12: 0.5366149359 | Q12: k6 | R12: 0.1548999066
D13: 0.1633206318 | E13: 0.8 | F13: 6 | G13: 0.5870580047 | H13: 0.4349611004 | I13: 0.2935290023 | J13: 0.2 | K13: 0.1 | L13: 0.7624900334 | M13: 0.6251825063 | N13: 0.4803094
A14: Zwischenergebnisse | D14: 0.1633206318 | E14: 0.9 | F14: 6 | G14: 0.5502290866 | H14: 0.3813523287 | I14: 0.2751145433 | J14: 0.2 | K14: 0.1 | L14: 0.8302779836 | M14: 0.5917429858 | N14: 0.4339901689 | Q14: Höhe-Geschw. | T14: Höhe-Temp.
A15: Mantelfläche | B15: =Grunddaten!$U$33 -> 1.5 | C15: m² | D15: 0.1633206318 | E15: 1 | F15: 6 | G15: 0.5199083735 | H15: 0.3416319559 | I15: 0.2599541868 | J15: 0.2 | K15: 0.1 | L15: 0.8913775788 | M15: 0.5644772525 | N15: 0.3951155125 | Q15: K1 | R15: 8.947221249e-08 | T15: K1 | U15: 2.71936044e-07
A16: Austrittsgeschwindigkeit | B16: =B10/B15/3600*B31 -> 0.1633206318 | C16: m/s | D16: 0.1633206318 | E16: 1.1 | F16: 6 | G16: 0.4944523274 | H16: 0.311298537 | I16: 0.2472261637 | J16: 0.2 | K16: 0.1 | L16: 0.9461444621 | M16: 0.5417595505 | N16: 0.3619921027 | Q16: K2 | R16: -3.931075921e-05 | T16: K2 | U16: -0.0001544214881
A17: Kühlleistung / Durchlass | B17: =1.2*1.006*(B12-B11)*B10/3.6 -> 1730.32 | C17: W | D17: 0.1633206318 | E17: 1.2 | F17: 6 | G17: 0.4727360912 | H17: 0.2875549234 | I17: 0.2363680456 | J17: 0.2 | K17: 0.1 | L17: 0.9950037753 | M17: 0.5224862799 | N17: 0.3334355626 | Q17: K3 | R17: 0.9970999293 | T17: K3 | U17: 0.9970993122
A18: spez. Kühlleistung / Durchlass | B18: =B17/(B2*B3) -> 24.03222222 | C18: W/m² | D18: =$F$1 -> 0.1633206318 | E18: 1.3 | F18: =$F$3 -> 6 | G18: 0.4539621733 | H18: 0.2685840471 | I18: =G18/2 -> 0.2269810867 | J18: =$F$5 -> 0.2 | K18: 0.1 | L18: 1.03841561 | M18: 0.5058829538 | N18: 0.3085839879
A19: Kühllast Raum | B19: =B2*B3*B5 -> 2520 | C19: W | D19: =$F$1 -> 0.1633206318 | E19: 1.4 | F19: =$F$3 -> 6 | G19: 0.4375484205 | H19: 0.2531613218 | I19: =G19/2 -> 0.2187742102 | J19: =$F$5 -> 0.2 | K19: 0.1 | L19: 1.076849709 | M19: 0.4913909059 | N19: 0.2867894613
A20: Leistungsasymmetrie | B20: =B19-B17 -> 789.68 | C20: W | D20: 0.1633206318 | E20: 1.5 | F20: 6 | G20: 0.423059289 | H20: 0.2404355287 | I20: 0.2115296445 | J20: 0.2 | K20: 0.1 | L20: 1.110767754 | M20: 0.4785976767 | N20: 0.2675518035
D21: 0.1633206318 | E21: 1.6 | F21: 6 | G21: =($R$7*D21*(1/E21)^$R$8+$R$9*F21^$R$10+$R$12*$B$8+$R$11)*$B$31 -> 0.410162005 | H21: =($U$7*D21*E21^$U$8+$U$9*F21^$U$10+$U$11) -> 0.2297991507 | I21: 0.2050810025 | J21: 0.2 | K21: 0.1 | L21: 1.140611631 | M21: 0.4671925866 | N21: =M21-(K21+$F$6)*L21 -> 0.2504763767 | P21: =IF(O21<>"",F21*($X$7*E21^$X$8+$X$9+$X$10*K21^$X$11)*$B$32,"") -> 
A22: Temperaturberechnung | D22: 0.1633206318 | E22: 1.7 | F22: 6 | G22: 0.3985976568 | H22: 0.2208086006 | I22: 0.1992988284 | J22: 0.2 | K22: 0.1 | L22: 1.166796213 | M22: 0.4569374674 | N22: 0.2352461869 | P22: =IF(O22<>"",F22*($X$7*E22^$X$8+$X$9+$X$10*K22^$X$11)*$B$32,"") -> 
A23: Volumenstrom Abluft | B23: =B10 -> 860 | C23: m³/h | D23: 0.1633206318 | E23: 1.8 | F23: 6 | G23: 0.3881615822 | H23: 0.213133478 | I23: 0.1940807911 | J23: 0.2 | K23: 0.1 | L23: =I23/(H23-0.05) -> 1.18970547 | M23: =G23+0.05*L23 -> 0.4476468557 | N23: 0.2216028164 | O23: =IF(AND(N23<J23,N22>J22),E23,"") ->  | P23: =IF(O23<>"",F23*($X$7*E23^$X$8+$X$9+$X$10*K23^$X$11)*$B$32,"") -> 
A24: Temperatur Abluft | B24: =B12+(B20/(1.2*1.006*B23/3.6)) -> 25.73826807 | C24: °C | D24: 0.1633206318 | E24: 1.9 | F24: 6 | G24: 0.3786897282 | H24: 0.2065233388 | I24: 0.1893448641 | J24: 0.2 | K24: 0.1 | L24: 1.209690935 | M24: 0.439174275 | N24: 0.2093329973
A25: Temperaturgradient A-Bereich | B25: =ROUND((I2-B11)/1.1,1) -> 1.6 | C25: K/m | D25: 0.1633206318 | E25: 2 | F25: 6 | G25: 0.3700489538 | H25: 0.2007853732 | I25: 0.1850244769 | J25: 0.2 | K25: 0.1 | L25: 1.227071784 | M25: 0.431402543 | N25: 0.198258904 | O25: 2 | P25: 4.22452804
A26: Temperaturgradient oberhalb | B26: =ROUND((B4-1.1)/(B24-B12),1) -> 0.7 | C26: K/m | D26: 0.1633206318 | E26: 2.1 | F26: 6 | G26: 0.3621300028 | H26: 0.1957690663 | I26: 0.1810650014 | J26: 0.2 | K26: 0.1 | L26: 1.242135976 | M26: 0.4242368016 | N26: 0.1882309663
A27: Differenz | D27: 0.1633206318 | E27: 2.2 | F27: 6 | G27: 0.3548423226 | H27: 0.1913554457 | I27: 0.1774211613 | J27: 0.2 | K27: 0.1 | L27: 1.255142032 | M27: 0.4175994241 | N27: 0.1791224381
A28: Vorgeschlagener Einsatzfall | B28: =IF(B25>B26,"Wärmequellen unten",IF(B25<B26,"Wärmequellen oben","Homogene Lastverteilung")) -> Wärmequellen unten | D28: 0.1633206318 | E28: 2.3 | F28: 6 | G28: 0.3481101837 | H28: 0.187449404 | I28: 0.1740550919 | J28: 0.2 | K28: 0.1 | L28: 1.266321183 | M28: 0.4114262429 | N28: 0.1708252181
D29: 0.1633206318 | E29: 2.4 | F29: 6 | G29: 0.3418697346 | H29: 0.1839741295 | I29: 0.1709348673 | J29: 0.2 | K29: 0.1 | L29: 1.275879664 | M29: 0.4056637178 | N29: 0.1632465817
A30: Durchlasskorrekturen | D30: 0.1633206318 | E30: 2.5 | F30: 6 | G30: 0.336066735 | H30: 0.1808670042 | I30: 0.1680333675 | J30: 0.2 | K30: 0.1 | L30: 1.284001024 | M30: 0.4002667862 | N30: 0.1563065915
A31: Höhenkorrektur Geschwindigkeit | B31: =($R$15*(B8*1000)^2+$R$16*(B8*1000)+$R$17)*C31 -> 1.025501642 | C31: 0.9 | D31: 0.1633206318 | E31: 2.6 | F31: 6 | G31: 0.330654794 | H31: 0.1780765422 | I31: 0.165327397 | J31: 0.2 | K31: 0.1 | L31: 1.29084838 | M31: 0.395197213 | N31: 0.1499360207
A32: Höhenkorrektur Temperaturdiff. | B32: =$U$15*(B8*1000)^2+$U$16*(B8*1000)+$U$17 -> 1.377323179 | D32: 0.1633206318 | E32: 2.7 | F32: 6 | G32: 0.325593984 | H32: 0.1755600761 | I32: 0.162796992 | J32: 0.2 | K32: 0.1 | L32: 1.296566529 | M32: 0.3904223104 | N32: 0.1440746699
D33: 0.1633206318 | E33: 2.8 | F33: 6 | G33: 0.3208497407 | H33: 0.1732819893 | I33: 0.1604248704 | J33: 0.2 | K33: 0.1 | L33: 1.301283921 | M33: 0.3859139367 | N33: 0.1386699918
D34: 0.1633206318 | E34: 2.9 | F34: 6 | G34: 0.3163919818 | H34: 0.1712123502 | I34: 0.1581959909 | J34: 0.2 | K34: 0.1 | L34: 1.30511446 | M34: 0.3816477048 | N34: 0.1336759574
D35: 0.1633206318 | E35: 3 | F35: 6 | G35: 0.312194395 | H35: 0.1693258475 | I35: 0.1560971975 | J35: 0.2 | K35: 0.1 | L35: 1.308159136 | M35: 0.3776023518 | N35: 0.129052116
D36: 0.1633206318 | E36: 3.1 | F36: 6 | G36: 0.308233859 | H36: 0.1676009525 | I36: 0.1541169295 | J36: 0.2 | K36: 0.1 | L36: 1.310507494 | M36: 0.3737592337 | N36: 0.1247628099
D37: 0.1633206318 | E37: 3.2 | F37: 6 | G37: 0.3044899683 | H37: 0.1660192544 | I37: 0.1522449841 | J37: 0.2 | K37: 0.1 | L37: 1.312238947 | M37: 0.3701019156 | N37: 0.1207765157
D38: 0.1633206318 | E38: 3.3 | F38: 6 | G38: 0.3009446413 | H38: 0.1645649287 | I38: 0.1504723206 | J38: 0.2 | K38: 0.1 | L38: 1.313423945 | M38: 0.3666158385 | N38: 0.1170652889
D39: 0.1633206318 | E39: 3.4 | F39: 6 | G39: 0.2975817949 | H39: 0.1632243094 | I39: 0.1487908974 | J39: 0.2 | K39: 0.1 | L39: 1.314125016 | M39: 0.3632880457 | N39: 0.1136042927
D40: 0.1633206318 | E40: 3.5 | F40: 6 | G40: 0.2943870727 | H40: 0.1619855418 | I40: 0.1471935363 | J40: 0.2 | K40: 0.1 | L40: 1.31439768 | M40: 0.3601069566 | N40: 0.1103713975
D41: 0.1633206318 | E41: 3.6 | F41: 6 | G41: 0.2913476163 | H41: 0.1608382991 | I41: 0.1456738082 | J41: 0.2 | K41: 0.1 | L41: 1.314291263 | M41: 0.3570621795 | N41: 0.1073468395
D42: 0.1633206318 | E42: 3.7 | F42: 6 | G42: 0.2884518731 | H42: 0.15977355 | I42: 0.1442259366 | J42: 0.2 | K42: 0.1 | L42: 1.313849617 | M42: 0.354144354 | N42: 0.1045129268 | P42: =IF(O42<>"",F42*($X$7*E42^$X$8+$X$9+$X$10*K42^$X$11)*$B$32,"") -> 
D43: 0.1633206318 | E43: 3.8 | F43: 6 | G43: 0.2856894324 | H43: 0.1587833665 | I43: 0.1428447162 | J43: 0.2 | K43: 0.1 | L43: 1.313111745 | M43: 0.3513450196 | N43: 0.1018537881
D44: 0.1633206318 | E44: 3.9 | F44: 6 | G44: 0.2830508859 | H44: 0.1578607646 | I44: 0.141525443 | J44: 0.2 | K44: 0.1 | L44: 1.312112365 | M44: 0.3486565041 | N44: 0.09935515486
D45: 0.1633206318 | E45: 4 | F45: 6 | G45: 0.2805277089 | H45: 0.1569995715 | I45: 0.1402638545 | J45: 0.2 | K45: 0.1 | L45: 1.310882394 | M45: 0.3460718286 | N45: 0.09700417375
D46: 0.1633206318 | E46: 4.1 | F46: 6 | G46: =($R$7*D46*(1/E46)^$R$8+$R$9*F46^$R$10+$R$12*$B$8+$R$11)*$B$31 -> 0.2781121574 | H46: 0.1561943135 | I46: 0.1390560787 | J46: 0.2 | K46: 0.1 | L46: 1.309449386 | M46: 0.3435846267 | N46: 0.09478924332
D47: 0.1633206318 | E47: 4.2 | F47: 6 | G47: 0.2757971798 | H47: 0.1554401228 | I47: 0.1378985899 | J47: 0.2 | K47: 0.1 | L47: 1.30783791 | M47: 0.3411890753 | N47: 0.09269987236
D48: 0.1633206318 | E48: 4.3 | F48: 6 | G48: 0.2735763401 | H48: 0.1547326576 | I48: 0.1367881701 | J48: 0.2 | K48: 0.1 | L48: 1.306069885 | M48: 0.3388798344 | N48: 0.0907265562
D49: 0.1633206318 | E49: 4.4 | F49: 6 | G49: 0.2714437517 | H49: 0.1540680347 | I49: 0.1357218758 | J49: 0.2 | K49: 0.1 | L49: 1.304164878 | M49: 0.3366519956 | N49: 0.08886066873
D50: 0.1633206318 | E50: 4.5 | F50: 6 | G50: 0.2693940188 | H50: 0.1534427724 | I50: 0.1346970094 | J50: 0.2 | K50: 0.1 | L50: 1.302140365 | M50: 0.3345010371 | N50: 0.08709436772
A51: Temperaturprofil | D51: 0.1633206318 | E51: 4.6 | F51: 6 | G51: 0.2674221863 | H51: 0.1528537407 | I51: 0.1337110932 | J51: 0.2 | K51: 0.1 | L51: 1.300011961 | M51: 0.3324227844 | N51: 0.08542051174
A52: h | B52: T | D52: 0.1633206318 | E52: 4.7 | F52: 6 | G52: 0.2655236946 | H52: 0.1522981194 | I52: 0.1327618473 | J52: 0.2 | K52: 0.1 | L52: 1.297793626 | M52: 0.3304133759 | N52: 0.08383258704
A53: 0 | B53: =B11 -> 17 | D53: 0.1633206318 | E53: 5.7 | F53: 6 | G53: =($R$7*D53*(1/E53)^$R$8+$R$9*F53^$R$10+$R$12*$B$8+$R$11)*$B$31 -> 0.2497858429 | H53: =($U$7*D53*E53^$U$8+$U$9*F53^$U$10+$U$11) -> 0.1481201551 | I53: =G53/2 -> 0.1248929214 | J53: 0.2 | K53: 0.1 | L53: =I53/(H53-0.05) -> 1.272856951 | M53: =G53+0.05*L53 -> 0.3134286904 | N53: =M53-(K53+$F$6)*L53 -> 0.0715858697 | O53: =IF(SUM(O10:O52)=0,3.6,"") ->  | P53: =IF(O53<>"",F53*($X$7*E53^$X$8+$X$9+$X$10*K53^$X$11)*$B$32,"") -> 
A54: 0.1 | B54: =I2 -> 18.77547196 | I54: Achtung! Messwerte unbarauchbar!
A55: 1.1 | B55: =B12 -> 23 | I55: Nahzonenberechung aus Trox-Auslegungstool verwendet!
A56: =B4 -> 3 | B56: =B24 -> 25.73826807 | I56: 0.1 | J56: k1 | K56: 0.4432071075 | M56: =$K$56*(B12-B11)^$K$57+$K$58*B16^$K$59+$K$60*B8+$K$63*B9+$K$61*B10+$K$62 -> 2.171783689 | N56: =F10*($X$7*M56^$X$8+$X$9+$X$10*I56^$X$11)*$B$32 -> 4.083537454
J57: k2 | K57: 0.6977670195
J58: k3 | K58: 4.388931818
J59: k4 | K59: 1.063548733
J60: k5 | K60: -0.005561272405
J61: k6 | K61: 0.00170549731
J62: k7 | K62: -1.260548224
J63: k8 | K63: -0.2121919203

Sheet Temperaturprofil (hidden)
B6: Dynamisches Diagramm zur Anzeige im Berechnungsblatt "Auslegung"
B8: Höhendaten | C8: Temperaturen
C9: R-Versionen | D9: L-Version
B10: 0 | C10: ='Berechnung-R'!$B$53 -> 17 | D10: ='Berechnung-L'!$B$53 -> 17 | E10: =IF(Auslegung!$D$12="QAL-L",Temperaturprofil!D10,Temperaturprofil!C10) -> 17
B11: 0.1 | C11: =IF('Berechnung-R'!$I$2<C10,C10,'Berechnung-R'!$I$2) -> 19.33803095 | D11: =IF('Berechnung-L'!$B$54<D10,D10,'Berechnung-L'!$B$54) -> 18.77547196 | E11: =IF(Auslegung!$D$12="QAL-L",Temperaturprofil!D11,Temperaturprofil!C11) -> 19.33803095 | G11: Temperaturgradient oberhalb von 3m: | J11: 0.3 | K11: K/m
B12: 1.1 | C12: =Auslegung!$D$33 -> 23 | D12: =C12 -> 23 | E12: =IF(Auslegung!$D$12="QAL-L",Temperaturprofil!D12,Temperaturprofil!C12) -> 23
B13: 3 | C13: ='Berechnung-R'!$B$24 -> 25.73826807 | D13: ='Berechnung-L'!$B$24 -> 25.73826807 | E13: =IF(Auslegung!$D$12="QAL-L",Temperaturprofil!D13,Temperaturprofil!C13) -> 25.73826807
B14: =Auslegung!D36 -> 4 | E14: =E13+(B14-B13)*J11 -> 26.03826807
B18: =Auslegung!$D$37 -> 1.8 | C18: 15
B19: =Auslegung!$D$37 -> 1.8 | C19: 31
